Cogmind - Beta 16 @@@ ROGUE MODE // 2026.01.04 @ 22:11:02 Player: Boris Result: Escaped! Performance ------------- Evolutions (9) 4500 Regions Visited (32) 6400 Robots Destroyed (561) 2805 Value Destroyed (39074) 39074 Prototype IDs (149) 2980 Alien Tech Used (1) 200 Bonus (41499) 41499 TOTAL SCORE: 97458 Bonus ------- High Alert Combat Kills 2238 Follower Combat Kills 16429 Entered Garrisons 2400 Used RIF Installer 7000 Scanned by Researcher 500 Destroyed MAIN.C Guards 500 Met MAIN.C 5000 Destroyed MAIN.C Shell 5000 Win 3000 Friendly Fire -568 Cogmind --------- Core Integrity 66/1600 Matter 300/300 Energy 90/100 System Corruption 12% Temperature Cool (0) Movement Core (50) Location To Epsilon Eridani Parts ------- > --- POWER (2) -------- (None) > --- PROPULSION (7) --- Experimental Biometal Medium Treads Experimental Biometal Medium Treads High-density Centrium Leg High-density Centrium Leg Experimental Biometal Leg Experimental Biometal Leg Experimental Biometal Leg > --- UTILITY (12) ----- Experimental Heat Sink Experimental Cooling System Experimental Cooling System Experimental Optical Array Concept Melee Reflex Suite Experimental Core Analyzer > --- WEAPON (4) ------- (None) > --- INVENTORY (5) ---- Light Quantum Reactor Light Quantum Reactor Experimental Biometal Leg Helical Railgun Experimental Jetlance Peak State ------------ > --- POWER ------------ Concept Zero-point Core Concept Zero-point Core > --- PROPULSION ------- Improved Antigrav System Gravjet Array Concept Combat Aerolev Unit Concept Combat Aerolev Unit Concept Combat Aerolev Unit Concept Gyrokinetic System > --- UTILITY ---------- Concept Antigrav Storage Unit Concept Melee Reflex Suite Experimental Core Analyzer Femtoactuators Advanced Phase Shifter Experimental Cloaking Device Concept Energy Mantle Improved System Shield Relay Coupler [NC] Relay Coupler [C] Relay Coupler [Sentry] Relay Coupler [Proto] > --- WEAPON ----------- Advanced Remote Datajack Experimental Jetlance Experimental Jetlance Experimental Jetlance > --- INVENTORY -------- Quantum Reactor Improved Antigrav System Improved Antigrav System Experimental Antigrav System Seismic Detector Experimental Core Analyzer Femtoactuators Advanced Phase Shifter Graphene Brace Relay Coupler [NC] Relay Coupler [C] Relay Coupler [C] Relay Coupler [C] Relay Coupler [Behemoth] Transdimensional Reconstructor Subatomic Replicator Concept Plasma Driver Concept Plasma Driver Concept Plasma Driver Concept Rapid Grenade Launcher Vibroblade Plasma Lance Experimental Jetlance [Rating: 256] Favorites ----------- Power Quantum Reactor Engine Heavy Deuterium Engine Power Core Concept Zero-point Core Reactor Quantum Reactor Propulsion Combat Linear Gravjet Treads Improved Heavy Treads Leg Experimental Biometal Leg Wheel Armored Huge Wheel Hover Unit Combat Linear Gravjet Flight Unit Q-thruster Utility Huge Storage Unit Device Experimental Sensor Array Storage Huge Storage Unit Processor Advanced Signal Interpreter Hackware Relay Coupler [Sentry] Protection Hardened Medium Armor Plating Weapon Minigun Energy Gun Gatling Laser Energy Cannon Cooled Particle Cannon Ballistic Gun Minigun Ballistic Cannon Heavy Assault Cannon Launcher Advanced EMP Blaster Special Weapon Advanced Remote Datajack Impact Weapon Heavy Hammer Slashing Weapon Vibroblade Piercing Weapon Experimental Jetlance Special Melee Weapon Improved Datajack Build | -11 -10 -9 -9 -8 -8 -8 -8 -8 -8 -7 -7 -7 -7 -6 -6 -5 -5 -4 -4 -4 -4 -3 -3 -3 -3 -3 -2 -2 -1 -1 -1 -1 ------- Run | Yrd Mat Mat Min Mat Gar Mat Gar Mat Gar Fac Gar Fac Gar Fac Gar Fac Gar Fac Gar Fac Gar Res Gar Res Qua Frg Res Gar Acc Gar Acc Com Slots Evolved 18 | . . 2 . 2 . . . . . 2 . . . 2 . 2 . 2 . . . 2 . . . . 2 . 2 . . . Power 1 | . . . . . . . . . . . . . . . . . . . . . . . . . . . 1 . . . . . Propulsion 5 | . . . . 1 . . . . . 1 . . . . . . . 2 . . . . . . . . . . 1 . . . Utility 10 | . . . . 1 . . . . . 1 . . . 2 . 2 . . . . . 2 . . . . 1 . 1 . . . Weapon 2 | . . 2 . . . . . . . . . . . . . . . . . . . . . . . . . . . . . . Parts Attached 493 | 8 2 36 1 19 16 13 11 5 7 16 18 18 14 3 14 19 14 24 16 9 9 21 15 8 14 49 8 11 10 17 9 39 Power 35 | 1 . 2 . 2 2 2 1 . . . 2 2 . . 1 1 3 . . . 1 1 2 . 1 2 3 . 2 . . 4 Engine 12 | 1 . 2 . 1 . 2 . . . . 2 2 . . 1 . 1 . . . . . . . . . . . . . . . Core 7 | . . . . 1 2 . 1 . . . . . . . . . 1 . . . . . . . . 1 . . 1 . . . Reactor 16 | . . . . . . . . . . . . . . . . 1 1 . . . 1 1 2 . 1 1 3 . 1 . . 4 Propulsion 88 | 2 2 4 . 6 2 2 1 2 2 2 6 1 2 . 1 1 2 6 1 . . 1 4 2 . 12 . 2 2 3 3 14 Treads 35 | 2 2 4 . 6 2 2 . 1 1 . 5 1 2 . 1 1 2 . . . . . 1 . . . . . . . . 2 Leg 7 | . . . . . . . . . . . . . . . . . . . . . . . 1 . . . . . . . . 6 Wheel 6 | . . . . . . . 1 1 1 2 1 . . . . . . . . . . . . . . . . . . . . . Hover 38 | . . . . . . . . . . . . . . . . . . 6 1 . . 1 2 2 . 11 . 2 2 3 3 5 Flight 2 | . . . . . . . . . . . . . . . . . . . . . . . . . . 1 . . . . . 1 Utility 228 | 3 . 6 . 5 5 6 7 2 5 6 6 8 5 3 5 14 4 13 10 7 5 11 6 2 7 25 5 6 6 13 5 17 Device 68 | 2 . 3 . 1 1 . 3 . . . 1 6 1 1 2 2 1 2 1 1 . 4 1 1 1 11 2 2 3 5 1 9 Storage 11 | 1 . 1 . 2 . . . 1 . 1 . . . . . . . 1 1 . . 1 . . . 2 . . . . . . Processor 19 | . . . . . . 1 . . . 1 1 . 2 . . 1 1 . 1 . . 3 . . . 4 . 1 . 1 1 1 Hackware 109 | . . 1 . 1 3 5 4 1 4 4 3 1 2 1 2 9 2 9 7 6 5 3 5 1 6 2 2 2 3 7 3 5 Protection 21 | . . 1 . 1 1 . . . 1 . 1 1 . 1 1 2 . 1 . . . . . . . 6 1 1 . . . 2 Artifact . | . . . . . . . . . . . . . . . . . . . . . . . . . . . . . . . . . Weapon 142 | 2 . 24 1 6 7 3 2 1 . 8 4 7 7 . 7 3 5 5 5 2 3 8 3 4 6 10 . 3 . 1 1 4 Energy Gun 24 | . . 10 . 1 . . 1 1 . 1 1 4 1 . . . . . . . . . . . . 4 . . . . . . Energy Cannon 16 | . . 4 . 1 . . . . . 4 . 1 . . 1 . . 1 . . . . 1 . . 1 . . . . 1 1 Ballistic Gun 50 | 2 . 7 1 3 4 . 1 . . 2 2 . 4 . 6 1 2 1 3 . . 6 . . 3 1 . . . . . 1 Ballistic Cannon 8 | . . . . 1 . . . . . . . . . . . . 1 1 . . 1 . 1 2 . . . . . . . 1 Launcher 10 | . . 1 . . 1 3 . . . . . 1 1 . . 1 . . . . 1 . . . . . . 1 . . . . Special Weapon 21 | . . . . . 2 . . . . 1 . 1 1 . . 1 2 1 2 1 1 2 1 . 3 . . 1 . 1 . . Impact Weapon 1 | . . 1 . . . . . . . . . . . . . . . . . . . . . . . . . . . . . . Slashing Weapon 6 | . . 1 . . . . . . . . 1 . . . . . . 1 . 1 . . . 2 . . . . . . . . Piercing Weapon 5 | . . . . . . . . . . . . . . . . . . . . . . . . . . 3 . 1 . . . 1 Special Melee Weapon 1 | . . . . . . . . . . . . . . . . . . . . . . . . . . 1 . . . . . . Unidentified Prototypes 38 | . . 2 . 3 . 1 . . . . . 1 1 . . . 1 1 . . . 6 1 3 . 10 . 1 . . . 7 Corrupted Parts 5 | . . . . . . . . . 1 . . . . . . . 1 . . . . . . . . 2 . . . . . 1 System Corruption 26 | . . . . . . . . . 2 . . . . . . . 10 . . . . . . . . 12 . . . . . 2 Parts Lost 74 | . 1 2 . 2 1 . . . 2 1 4 1 2 . . 2 . 1 . . . 1 4 . . 9 . 7 1 7 . 26 Power 5 | . . 1 . . . . . . . . . . . . . . . . . . . . 1 . . . . . . . . 3 Propulsion 25 | . 1 . . 2 . . . . . . 2 . . . . . . . . . . . 1 . . 3 . 1 . 3 . 12 Utility 27 | . . . . . . . . . 1 . 1 . 1 . . 2 . . . . . 1 . . . 4 . 5 1 3 . 8 Weapon 17 | . . 1 . . 1 . . . 1 1 1 1 1 . . . . 1 . . . . 2 . . 2 . 1 . 1 . 3 Highest Loss Streak 11 | . 1 1 . 1 1 . . . 1 1 3 1 2 . . 1 . 1 . . . 1 3 . . 2 . 4 1 3 . 11 To Critical Strikes . | . . . . . . . . . . . . . . . . . . . . . . . . . . . . . . . . . Average Backups 20 | 1 5 12 14 18 20 24 24 23 24 24 23 22 23 23 23 22 23 15 17 18 19 19 19 19 18 20 23 23 23 24 24 12 Power . | . . 1 1 1 1 1 1 1 . . . . 1 1 . . 1 1 1 1 1 1 . . . . 3 2 1 . . . Propulsion 1 | . 1 1 1 . . . 2 2 1 1 . . . 1 1 . 2 . . . . 1 . . . . 3 3 1 . . 1 Utility 13 | . 2 5 5 7 13 16 13 12 17 17 16 17 18 17 18 16 14 10 13 14 16 13 16 17 13 10 6 9 11 13 15 5 Weapon 4 | . 1 3 5 6 4 5 6 6 4 4 5 3 2 2 3 3 4 2 2 2 1 3 2 2 2 4 7 6 6 6 5 4 Tool/Special . | . . . . . . . . . . . . . . . . . . . . . . . . . . . . . . . . . Unused Backups 145 | . . 10 . 4 5 6 2 . 10 1 6 5 5 1 7 2 11 1 5 . 4 7 1 . 2 30 2 4 1 4 1 8 Power 8 | . . 1 . . . . . . . . . . . . . . 1 . . . . 1 . . . 2 2 . . . . 1 Propulsion 12 | . . 1 . . . . . . 1 . 1 . . . 1 . . . . . . . . . 1 2 . 2 1 . . 2 Utility 89 | . . 3 . 1 4 5 2 . 8 . 4 3 5 1 6 . 7 1 5 . 2 5 1 . 1 16 . 2 . 3 1 3 Weapon 28 | . . 5 . 3 . 1 . . 1 1 1 2 . . . . 3 . . . 2 . . . . 9 . . . . . . Tool/Special 8 | . . . . . 1 . . . . . . . . . . 2 . . . . . 1 . . . 1 . . . 1 . 2 Average Slot Usage (%) 91 | . 99 99 100 91 96 100 96 89 89 87 86 74 83 80 80 86 87 97 99 99 100 99 95 93 97 93 91 88 93 95 99 82 Engine 3 | . 14 10 11 2 . 6 6 . . . 5 7 7 6 6 1 . . . . . . . . . . . . . . . . Core 2 | . . . . 6 9 2 2 9 9 7 1 . . . . . 2 . . . . . . . . 1 4 4 6 8 8 4 Reactor 1 | . . . . . . . . . . . . . . . . 3 1 5 5 5 5 4 4 4 4 2 3 4 1 . . 1 Treads 11 | . 27 21 22 26 27 27 25 9 9 . 11 15 15 13 13 11 11 1 . . . . . . . . . . . . . 2 Wheel 1 | . . . . . . . . 9 9 19 11 . . . . . . . . . . . . . . . . . . . . . Hover 8 | . . . . . . . . . . . . . . . . . . 27 31 31 31 28 27 28 27 25 21 20 23 24 27 14 Device 4 | . 14 7 . . 1 . 3 . 3 . 2 7 8 4 . 4 4 4 4 2 . 2 1 1 4 7 11 6 11 11 6 12 Storage 6 | . 14 11 11 9 9 9 9 9 9 7 7 7 7 6 6 5 5 5 5 5 5 4 4 4 4 4 4 4 4 4 4 2 Processor 4 | . . . . . . 1 . . . 1 1 6 5 6 6 9 5 5 5 5 5 5 9 9 9 12 13 10 8 8 11 12 Hackware 16 | . . 3 11 17 16 16 12 14 6 19 15 7 6 8 13 20 30 25 25 28 31 33 31 31 27 16 11 16 19 24 25 13 Protection 1 | . . . . . . . 1 3 7 1 1 . . 6 6 2 . . 1 . . . . . . 2 4 3 1 . . 2 Energy Gun 5 | . . 25 . 1 7 8 8 13 16 5 2 14 24 . . . . . . . . . . . . 3 . . . . . . Energy Cannon 1 | . . 4 . . . . . . . 5 19 . . . . . . . . . . . . . . . . . . . . 2 Ballistic Gun 12 | . 28 10 44 23 21 24 22 18 13 8 . 1 2 25 21 19 19 14 13 14 11 10 . . 6 . . . . . . . Special Weapon 1 | . . . . . 1 2 2 3 1 3 . . . . 1 1 1 3 4 5 5 2 4 4 4 1 4 1 2 4 4 1 Slashing Weapon 1 | . . . . . . . . . 3 5 1 5 2 . 2 . 1 . 1 . 2 2 4 6 4 3 . . . . . . Piercing Weapon 1 | . . . . . . . . . . . . . . . . . . . . . . . . . . 4 13 12 13 12 11 2 Peak Build Rating 256 | 9 9 24 25 38 44 44 46 45 48 58 83 87 77 86 89 108 119 137 133 140 138 165 164 150 161 237 231 223 256 248 240 248 Average Rating 97 | 7 7 18 24 31 39 41 42 43 46 52 64 78 72 82 87 101 108 122 128 132 135 148 150 140 148 181 223 211 242 233 234 207 On Entrance 107 | . 7 9 24 25 38 42 43 45 44 45 57 81 73 77 82 88 108 119 128 133 135 138 165 149 137 161 234 215 223 250 233 240 Avg Prop Armor Cover (%) 8 | . . . . . . . 8 7 8 . 12 . . . . . . 2 . 2 . . . 5 5 6 . . . . . 12 Naked Turns . | . . . . . . . . . . . . . . . . . . . . . . . . . . . . . . . . . Heaviest Build 144 | 15 15 44 40 102 106 110 114 109 118 118 144 110 113 133 135 135 131 125 83 83 88 90 89 89 81 90 91 100 104 82 86 131 Greatest Support 150 | 40 40 40 40 62 70 73 73 28 28 56 150 150 150 150 150 150 135 135 90 90 90 91 91 91 86 98 96 96 106 108 105 148 Greatest Overweight (x) 6 | 4 . 2 . 1 1 1 3 3 4 2 6 . . . . . . 1 . 1 . . . 1 . 1 . 1 . . . 1 Average Overweight (x) . | . . . . . . 1 1 3 3 1 2 . . . . . . . . . . . . . . . . . . . . . Largest Inventory Capacity 25 | 8 8 15 15 25 25 25 25 25 25 25 25 25 25 25 25 25 25 25 20 20 20 20 20 20 20 25 25 25 25 25 25 25 Average Capacity 21 | 7 8 13 15 19 20 25 25 25 25 25 25 25 25 25 25 25 25 16 18 20 20 20 20 20 20 21 25 25 25 25 25 17 Most Carried 25 | 3 7 15 15 21 25 25 25 25 25 25 25 25 25 25 25 25 25 25 20 20 20 20 20 20 20 25 25 25 25 25 25 25 Average Carried 21 | 1 5 12 14 19 20 24 24 24 24 24 24 24 24 24 24 23 24 15 17 18 19 19 19 19 19 21 23 23 23 24 24 12 Final Capacity 25 | 8 8 15 15 20 25 25 25 25 25 25 25 25 25 25 25 25 25 15 20 20 20 20 20 20 20 25 25 25 25 25 25 5 Final Carried 25 | 3 7 15 15 20 25 24 25 25 25 25 25 25 25 25 25 25 25 12 20 20 20 20 20 20 20 22 24 25 25 25 23 5 Class Distribution -------------------- 21% | Botlord-Tank 13% | Botlord-Gunner 9% | Scavenger-Gunner 8% | Scavenger-Tank 8% | Bothacker-Gunner 6% | Botlord-Mutant 6% | Botlord-Skirmisher 5% | Gunner 5% | Botlord-Gladiator 3% | Mutant Dominant Class ---------------- Mutant | -10/Materials Gunner | -9/Materials Gunner | -9/Mines Scavenger-Gunner | -8/Materials Bothacker-Gunner | -8/Garrison Bothacker-Gunner | -8/Materials Bothacker-Gunner | -8/Garrison Bothacker-Gunner | -8/Materials Botlord-Tank | -8/Garrison Botlord-Gunner | -7/Factory Scavenger-Tank | -7/Garrison Scavenger-Tank | -7/Factory Botlord-Tank | -7/Garrison Botlord-Tank | -6/Factory Botlord-Tank | -6/Garrison Botlord-Skirmisher | -5/Factory Botlord-Tank | -5/Garrison Botlord-Gunner | -4/Factory Botlord-Gunner | -4/Garrison Botlord-Gunner | -4/Factory Botlord-Gunner | -4/Garrison Botlord-Skirmisher | -3/Research Botlord-Gunner | -3/Garrison Botlord-Mutant | -3/Research Botlord-Gunner | -3/Quarantine Botlord-Mutant | -3/Protoforge Scavenger-Gladiator | -2/Research Botlord-Gladiator | -2/Garrison Botlord-Gladiator | -1/Access Botlord-Gladiator | -1/Garrison Botlord-Sprinter | -1/Access Botlord-Mutant | -1/Command Resources | -11 -10 -9 -9 -8 -8 -8 -8 -8 -8 -7 -7 -7 -7 -6 -6 -5 -5 -4 -4 -4 -4 -3 -3 -3 -3 -3 -2 -2 -1 -1 -1 -1 ----------- Run | Yrd Mat Mat Min Mat Gar Mat Gar Mat Gar Fac Gar Fac Gar Fac Gar Fac Gar Fac Gar Fac Gar Res Gar Res Qua Frg Res Gar Acc Gar Acc Com Matter Collected 23337 | 394 237 657 120 1146 945 841 925 43 905 48 597 396 487 48 973 1137 1095 1199 876 558 647 1764 988 233 761 2148 100 445 240 630 264 1490 Remotely 130 | . . . . . . . 130 . . . . . . . . . . . . . . . . . . . . . . . . . Salvage Created 28093 | 208 197 1768 154 1592 750 964 1023 186 1005 . 2175 823 1639 64 567 847 1032 444 289 153 156 1299 32 73 402 2982 283 1152 1075 1079 468 3212 Parts 1464 | 16 12 126 17 104 36 64 48 11 69 . 90 56 53 3 23 56 39 23 10 12 19 74 1 4 25 152 15 56 69 58 18 105 Haulers Intercepted 16 | . 1 4 . 4 . 1 . . . . . . . . . 1 . . . . . 4 . . . . 1 . . . . . Recyclers Shooed 7 | . . 2 . 1 . . . . . . . . . . . 2 . 1 . . . 1 . . . . . . . . . . Parts Field Recycled . | . . . . . . . . . . . . . . . . . . . . . . . . . . . . . . . . . Retrieved Matter . | . . . . . . . . . . . . . . . . . . . . . . . . . . . . . . . . . Parts Self-Destructed . | . . . . . . . . . . . . . . . . . . . . . . . . . . . . . . . . . Prevented . | . . . . . . . . . . . . . . . . . . . . . . . . . . . . . . . . . Parts Restored 6 | . . . . . . . . . . . . . . . . . . . . . . . . . . 3 . 3 . . . . Faulty 6 | . . . . . . . . . . . . . . . . . . . . . . . . . . 3 . 3 . . . . Kills | -11 -10 -9 -9 -8 -8 -8 -8 -8 -8 -7 -7 -7 -7 -6 -6 -5 -5 -4 -4 -4 -4 -3 -3 -3 -3 -3 -2 -2 -1 -1 -1 -1 ------- Run | Yrd Mat Mat Min Mat Gar Mat Gar Mat Gar Fac Gar Fac Gar Fac Gar Fac Gar Fac Gar Fac Gar Res Gar Res Qua Frg Res Gar Acc Gar Acc Com Combat Hostiles Destroyed 427 | . 5 36 6 29 20 18 18 4 20 . 33 12 27 1 10 7 14 10 2 2 10 8 1 1 8 35 1 19 11 14 3 42 Melee 105 | . . 4 . . . . . . 2 . 1 3 . . 1 . 3 . . . . . 1 1 4 29 1 17 11 14 3 10 Guns 198 | . 5 20 6 17 11 13 14 4 11 . 9 8 26 1 8 3 10 9 1 2 3 8 . . 4 4 . . . . . 1 Cannons 60 | . . 8 . 8 5 . . . . . 23 . . . . . 1 1 1 . . . . . . . . 1 . . . 12 AOE 50 | . . 3 . 4 4 5 3 . 7 . . 1 . . . 4 . . . . 7 . . . . . . 1 . . . 11 Classes Destroyed 29 | 3 4 4 . 2 3 2 . . . . 1 . . . 1 1 1 . . . . 1 . . . 5 . 1 . . . . Worker 18 | 1 . 1 1 3 . 2 . . . . . . . . . 3 . 1 . 1 . 1 . . . 1 1 . 1 . . 1 Builder 16 | . . 1 . 3 . . . . . . . 1 . . . 1 . . . . . 3 . . . 3 . . 2 . 2 . Tunneler 16 | 6 . . 1 . . . . . . . . 4 . . . 1 . . . . . 1 . . . . 2 . . . 1 . Hauler 16 | . 1 4 . 4 . 1 . . . . . . . . . 1 . . . . . 4 . . . . 1 . . . . . Recycler 8 | 1 . 1 . 2 . 1 . . . . . . . . . 1 . . . . . 1 . . . . . . . . 1 . Mechanic 2 | . . . . 1 . 1 . . . . . . . . . . . . . . . . . . . . . . . . . . Operator 9 | . 1 3 . . . 1 . . . . . 1 . . . . . . . . . . . . . . 1 . 1 . . 1 Drone 5 | . . . . . . . . . . . . . . . . . . . . . . . . . . 4 . . . . . 1 Turret 7 | . . . . . . . . . . . . . . . . 7 . . . . . . . . . . . . . . . . Watcher 23 | . . 5 . 4 . . 1 . . . . 2 . . . . . . . . . 1 . 1 2 1 . . 2 . 1 3 Swarmer 92 | . 3 10 4 6 5 5 3 . 3 . 6 . 5 . 1 4 5 6 2 . 9 . 1 1 1 . . 8 . 3 . 1 Cutter 7 | . . . . . . . . . . . . . . . 1 . 1 . . 1 . . . . . . . . . 3 . 1 Grunt 116 | . 2 16 2 12 5 6 10 2 4 . 17 2 11 1 6 1 5 2 . . . . . . . 3 . 2 . . 3 4 Brawler 6 | . . . . . . . . . . . 2 . 2 . . . . . . 1 . . . . . . . 1 . . . . Duelist 8 | . . 2 . 2 . 2 . . . . 1 . 1 . . . . . . . . . . . . . . . . . . . Protector 2 | . . . . . . 1 . . . . . . 1 . . . . . . . . . . . . . . . . . . . Researcher 3 | . . . . . . . . . . . . . . . . . . . . . . . . . . 3 . . . . . . Sentry 58 | . . 8 . 8 2 3 2 1 2 . 8 5 3 . 1 . 2 . . . . . . . . 7 1 3 1 1 . . Demolisher 3 | . . . . . . 2 . . . . . . 1 . . . . . . . . . . . . . . . . . . . Specialist 5 | . . . . . 2 . . . . . 1 . . . . . . . . . . . . . . 1 . . . . . 1 Hunter 38 | . . . . . 3 . 1 . . . 1 1 . . . . 1 . . . . 2 . . 2 4 . . 4 7 . 12 Programmer 61 | . . . . . 3 . 2 1 11 . . 4 3 . 1 2 . 2 1 . 1 5 . . 2 7 . 3 7 2 . 4 Heavy 2 | . . . . 1 . . . . . . . . . . 1 . . . . . . . . . . . . . . . . . Q-Series 1 | . . . . . . . . . . . . . . . . . . . . . . . . . . 1 . . . . . . Behemoth 3 | . . . . . . . . . . . . . . . . . 2 . . . . . . . . . . 1 . . . . Quarantine Guard 3 | . . . . . . . . . . . . . . . . . . . . . . . . . 3 . . . . . . . Enhanced Q-Series 18 | . . . . . . . . . . . . . . . . . . . . . . . . . . . . . . . . 18 Hotshot 2 | . . . . . . . . . . . . . . . . . . . . . . . . . . 2 . . . . . . Decapitator 3 | . . . . . . . . . . . . . . . . . . . . . . . . . . 3 . . . . . . Immortal 4 | . . . . . . . . . . . . . . . . . . . . . . . . . . 4 . . . . . . Striker 1 | . . . . . . . . . . . . . . . . . . . . . . . . . . . . 1 . . . . Executioner 3 | . . . . . . . . . . . . . . . . . . . . . . 1 . . . . . 1 . 1 . . V-Series 3 | . . . . . . . . . . . . . . . . . . . . . . . . . . 3 . . . . . . Tinkerer 1 | . . . . . . . . . . . . . . . . . . . . . . . . . . 1 . . . . . . Best Kill Streak 13 | 3 3 6 4 13 4 7 7 3 5 . 6 4 13 1 2 8 4 6 2 1 7 5 1 1 3 4 1 5 7 4 3 11 Combat Bots Only 13 | . 3 6 4 9 4 7 7 3 5 . 6 2 13 1 2 4 4 6 2 1 7 3 1 1 3 4 1 5 6 4 2 11 Max Kills in Single Turn 4 | 1 1 3 1 3 2 3 2 1 2 . 2 1 2 1 2 2 2 2 1 1 4 2 1 1 1 1 1 1 2 1 1 2 Gunslinging 2 | . . 1 . 2 . 1 1 . . . . . 1 . 1 . . 1 . . . . . . . . . . . . . . Exploded 4 | . . 3 . 2 2 3 1 . 2 . . 1 . . . 1 . . . . 4 . . . . . . 1 . . . 2 Melee 2 | . . 1 . . . . . . 1 . 1 1 . . 1 . 1 . . . . . 1 1 1 1 1 1 2 1 1 2 Uniques/NPCs Destroyed 1 | . . . . . . . . . . . . . . . . . . . . . . . . . . . . . . . . 1 MAIN.C Shell (-1/Command) Combat | -11 -10 -9 -9 -8 -8 -8 -8 -8 -8 -7 -7 -7 -7 -6 -6 -5 -5 -4 -4 -4 -4 -3 -3 -3 -3 -3 -2 -2 -1 -1 -1 -1 -------- Run | Yrd Mat Mat Min Mat Gar Mat Gar Mat Gar Fac Gar Fac Gar Fac Gar Fac Gar Fac Gar Fac Gar Res Gar Res Qua Frg Res Gar Acc Gar Acc Com Hostile Shots Fired 2435 | . 29 132 23 126 90 33 46 . 85 21 239 88 108 2 24 63 54 87 34 22 47 122 19 16 32 263 8 84 41 96 20 381 Missed 864 | . 8 28 7 40 30 14 14 . 30 9 70 31 32 . 10 29 19 29 10 8 19 27 7 7 19 87 5 36 24 58 12 145 Hits 1571 | . 21 104 16 86 60 19 32 . 55 12 169 57 76 2 14 34 35 58 24 14 28 95 12 9 13 176 3 48 17 38 8 236 Melee 37 | . . 3 . . . 3 . . . . 2 . 4 . . . 3 . . . . . . . . 7 . 1 . 5 . 9 Projectile 1534 | . 21 101 16 86 60 16 32 . 55 12 167 57 72 2 14 34 32 58 24 14 28 95 12 9 13 169 3 47 17 33 8 227 AOE 24 | . . . . . . . . . . . . . 2 . 1 3 1 . . 2 . . . . . . . . . 2 . 13 Critical Strikes 72 | . . 3 . 1 1 . 2 . 5 . 3 . 1 . 1 3 4 2 2 . . 8 . . . 15 1 1 . 3 . 16 Actively Blocked 27 | . . . . . . . . . . . . . . . . . 2 1 . . . 6 . . . 11 . . . 1 . 6 Damage Taken 31166 | . 208 1284 144 1357 980 291 561 17 933 132 1958 753 909 38 455 905 872 1117 694 428 463 2381 314 193 509 4087 71 1381 479 1024 183 6045 Core 4562 | . 29 146 8 229 61 14 62 17 142 26 190 100 51 . 35 56 47 151 150 71 48 385 23 36 105 570 25 251 112 263 27 1132 Absorbed by Shields 1977 | . . . . . . . . . 37 . . . . . . . . . 24 . 113 . 28 . . 36 . 124 38 26 . 1551 Reduced by Siege Mode 92 | . . . . . . . . . . . . 11 81 . . . . . . . . . . . . . . . . . . . Redirected to Shielding 283 | . . . . . . . . . . . . . . . . . . . . . . . . . . 33 . 116 . . . 134 Ignored by Resistances 64 | . . . . . . . . . . . 64 . . . . . . . . . . . . . . . . . . . . . Regen/Repaired (Parts) 1814 | . . 215 . 285 . 113 . 24 11 . . . . . . 341 77 38 43 187 66 264 . . 38 112 . . . . . . Core Remaining (%) 58 | 100 88 . 61 . . . . . 4 . . . 47 . 95 . 89 . . . 63 . . . . 12 . 80 . . . 4 Volleys Fired 1466 | 19 32 65 10 84 77 46 57 13 63 9 79 8 48 6 51 69 50 74 49 51 32 84 38 12 49 63 . 19 13 36 27 133 Largest 4 | 2 2 4 4 4 4 4 4 4 4 1 4 3 4 4 4 4 4 4 4 3 3 4 1 1 2 3 . 1 1 1 1 3 Hottest 320 | 40 40 204 92 96 141 139 139 180 167 5 120 240 320 120 132 132 132 152 152 101 101 160 65 10 60 282 . 140 10 10 140 280 Shots Fired 2868 | 38 64 236 40 224 179 118 134 23 150 9 225 36 139 15 99 138 96 126 71 63 46 148 39 12 61 79 . 19 13 36 27 165 Gun 1744 | 38 64 191 40 186 150 92 108 15 119 . 23 35 123 12 73 92 67 67 36 18 24 91 2 . 23 34 . . . . . 21 Cannon 454 | . . 44 . 36 16 3 . . . . 187 . . . 3 . 5 10 2 . . . 3 . . 17 . 2 . . 9 117 Launcher 102 | . . 1 . 2 8 5 15 . 19 . . 1 10 . . 19 1 . . . 2 4 . . . . . 5 . . . 10 Special 568 | . . . . . 5 18 11 8 12 9 15 . 6 3 23 27 23 49 33 45 20 53 34 12 38 28 . 12 13 36 18 17 Kinetic 1350 | 38 64 73 40 222 119 68 75 8 57 . 5 5 . 12 73 92 72 76 38 18 24 91 4 . 23 1 . . . . . 52 Thermal 759 | . . 90 . . 47 27 33 7 62 . 205 30 123 . 3 . . 1 . . . . . . . 34 . 2 . . 9 86 Explosive 33 | . . 1 . 2 8 . . . . . . 1 . . . . . . . . 2 4 . . . . . 5 . . . 10 Electromagnetic 158 | . . 72 . . . 5 15 . 19 . . . 10 . . 19 1 . . . . . 1 . . 16 . . . . . . Robot Hit Streak 50 | 9 10 12 11 26 12 8 11 8 13 3 25 10 50 12 12 9 11 11 7 8 11 13 7 12 17 29 . 13 17 30 41 14 Robot Miss Streak 10 | 2 3 6 5 4 3 3 2 3 3 1 10 6 5 2 5 5 3 5 3 3 2 3 2 2 2 4 . 1 1 2 1 2 Penetration Max 3 | . . . . . . . 1 . . . . . . . 1 1 1 1 1 2 . 3 . . . . . . . . . 2 Secondary Targets 40 | . . 2 3 9 2 2 5 . 2 . . . 7 . 2 1 . 2 . . 1 2 . . . . . . . . . . Max Gunslinging Chain 2 | . . 1 1 2 1 1 2 . 1 . . . 1 . 1 1 . 1 . . 1 1 . . . . . . . . . . Autonomous 42 | . . . . . . . . . . . 18 24 . . . . . . . . . . . . . . . . . . . . Shots Hit Robots 2245 | 22 42 156 19 141 95 61 88 15 102 7 123 45 138 10 56 56 70 79 58 46 29 110 38 15 58 178 8 80 45 65 28 162 Core Hits 964 | 9 10 75 10 67 40 40 31 5 49 . 70 31 99 4 25 38 31 22 12 6 12 39 2 2 15 74 3 32 17 20 5 69 Critical Kills 35 | . . . . 1 1 . . . . . . . . . 2 7 2 3 . . . 11 . . . . . . . . . 8 Critical Parts Destroyed 49 | . . 3 . . . 1 1 . . . . . . . 7 8 5 2 . . . 21 . . . . . . . . . 1 Critical Strikes 245 | . . 7 . 6 5 4 4 1 3 . 1 . 1 . 9 15 7 6 . . . 34 2 . 1 36 4 29 13 15 6 36 Burn 19 | . . 4 . . 1 3 3 1 3 . . . . . . . . . . . . . . . . 4 . . . . . . Meltdown 8 | . . . . . . . . . . . . . . . . . . . . . . . . . . . . . . . . 8 Destroy 74 | . . 1 . 1 1 1 1 . . . . . . . 9 15 7 5 . . . 32 . . . . . . . . . 1 Blast 11 | . . . . 5 3 . . . . . . . . . . . . . . . . . . . . . . . . . . 3 Smash 2 | . . 2 . . . . . . . . . . . . . . . . . . . . . . . . . . . . . . Sever 9 | . . . . . . . . . . . 1 . 1 . . . . 1 . . . 2 2 . 1 . . 1 . . . . Impale 122 | . . . . . . . . . . . . . . . . . . . . . . . . . . 32 4 28 13 15 6 24 Melee Attacks 858 | . . 23 . 1 6 . 8 . 13 3 24 36 46 . 20 1 29 2 20 1 1 27 17 8 40 185 21 98 56 67 41 64 Impact 17 | . . 17 . . . . . . . . . . . . . . . . . . . . . . . . . . . . . . Slashing 391 | . . 6 . 1 6 . 8 . 13 3 24 36 46 . 20 1 29 2 20 1 1 27 17 8 40 73 . 6 . . . 3 Piercing 448 | . . . . . . . . . . . . . . . . . . . . . . . . . . 110 21 92 56 67 41 61 Sneak Attacks 111 | . . 4 . . . . . . 4 1 . 4 . . . . 7 . 2 . . 3 9 1 3 36 5 4 12 4 6 6 Combat Hostiles 6 | . . . . . . . . . . . . . . . . . . . . . . . . . . 1 . . 5 . . . Follow-up Attacks 50 | . . . . . . . . . . . . . . . . . . . . . . . . . . 23 . 13 4 4 3 3 Martial Strikes 60 | . . . . . . . . . . . . . . . . . . . . . . . . . . 7 . 20 12 9 . 12 Damage Inflicted 74457 | 315 528 3132 327 3590 2733 1562 2044 205 2916 68 4371 1858 4587 197 585 1383 1913 1110 1416 453 964 1832 1051 305 1190 9266 777 4060 2216 1900 882 14721 Guns 20955 | 315 528 1614 293 1781 1249 987 1351 205 1651 . 652 1073 2576 184 456 484 852 920 483 453 349 792 . . 373 862 . . . . . 472 Cannons 15190 | . . 447 . 1359 457 . . . . . 2787 . . . 95 . 102 148 51 . . . . . . 315 . 190 . . . 9239 Explosions 8049 | . . 292 . 390 736 575 343 . 665 . . 61 5 . . 892 . . . . 615 364 . . . . . 729 . . . 2382 Melee 30051 | . . 743 . . 291 . 350 . 600 68 932 662 2006 . 34 . 959 42 882 . . 676 1051 305 817 8089 777 3141 2216 1900 882 2628 Ramming 212 | . . 36 34 60 . . . . . . . 62 . 13 . 7 . . . . . . . . . . . . . . . . Kinetic 16819 | 315 528 515 293 3140 1505 737 984 103 886 . 122 92 . 184 456 484 954 1068 534 453 349 792 . . 373 . . . . . . 1952 Thermal 18989 | . . 948 . . 201 525 404 102 797 . 3317 981 2576 . 95 148 . . . . . . . . . 946 . 190 . . . 7759 Explosive 5450 | . . 173 . 390 736 . . . . . . 61 . . . . . . . . 615 364 . . . . . 729 . . . 2382 Electromagnetic 2936 | . . 717 . . . 300 306 . 633 . . . 5 . . 744 . . . . . . . . . 231 . . . . . . Impact 515 | . . 515 . . . . . . . . . . . . . . . . . . . . . . . . . . . . . . Slashing 14401 | . . 228 . . 291 . 350 . 600 68 932 662 2006 . 34 . 959 42 882 . . 676 1051 305 817 4074 . 274 . . . 150 Piercing 15135 | . . . . . . . . . . . . . . . . . . . . . . . . . . 4015 777 2867 2216 1900 882 2478 Highest Corruption 45 | . . . . . 3 3 3 . 6 . . 5 2 . . 4 14 1 2 5 2 8 8 10 10 45 . . 1 3 3 12 Average Corruption 7 | . . . . . 2 3 2 . 2 . . 2 1 . . 2 11 1 1 3 2 5 8 8 10 25 . . 1 2 3 6 Corruption Purged 23 | . . . . . . . 3 . . . . 5 2 . . . . . . 3 . . . . . . . . . . . 10 Corruption Blocked . | . . . . . . . . . . . . . . . . . . . . . . . . . . . . . . . . . Effects 511 | . . . . . 16 27 21 . 21 . . 9 1 . . 16 83 . 11 10 13 18 24 7 54 133 . . 1 7 3 36 Message Errors 132 | . . . . . 5 4 10 . 4 . . 1 1 . . 6 18 . 4 1 3 6 4 1 19 31 . . 1 2 1 10 Matter Fused 119 | . . . . . 5 8 2 . 7 . . 1 . . . 4 19 . . 3 4 7 7 2 11 31 . . . . 1 7 Heat Flow Errors 52 | . . . . . 1 3 1 . 3 . . 1 . . . 5 7 . . 2 . . 4 . 3 17 . . . 1 . 4 Energy Discharges 52 | . . . . . 3 3 2 . 1 . . 1 . . . 1 11 . 2 1 . 1 1 1 8 11 . . . 1 . 4 Parts Rejected 9 | . . . . . . . . . . . . . . . . . . . . 1 1 1 1 . . 1 . . . 1 . 3 Parts Fused 6 | . . . . . . . . . . . . . . . . . 4 . 1 . . . . . . 1 . . . . . . Data Loss (minor) 70 | . . . . . . 3 3 . 3 . . 4 . . . . 16 . 3 1 2 1 2 2 6 19 . . . 1 . 4 Data Loss (major) 28 | . . . . . 2 3 1 . 2 . . 1 . . . . 1 . . 1 . 2 2 1 2 7 . . . 1 1 1 Misfires 17 | . . . . . . 2 2 . . . . . . . . . 5 . 1 . 2 . 1 . 2 1 . . . . . 1 Alerts 11 | . . . . . . 1 . . . . . . . . . . . . . . 1 . 2 . 1 4 . . . . . 2 Misdirections 10 | . . . . . . . . . . . . . . . . . . . . . . . . . 1 9 . . . . . . Weapon Failures 5 | . . . . . . . . . 1 . . . . . . . 2 . . . . . . . 1 1 . . . . . . Overload Shots 2 | . . . . . . . . . . . 2 . . . . . . . . . . . . . . . . . . . . . Overflow Damage 5300 | . . 232 . 66 47 . . . 33 28 38 116 131 . . 14 5 35 42 . 27 10 87 1 46 1095 356 40 548 228 589 1486 Projectiles 810 | . . 3 . 66 29 . . . . . 38 . . . . . 5 35 . . . . . . . . . . . . . 634 Explosions 136 | . . 11 . . . . . . . . . . . . . 14 . . . . 27 3 . . . . . . . . . 81 Melee 4354 | . . 218 . . 18 . . . 33 28 . 116 131 . . . . . 42 . . 7 87 1 46 1095 356 40 548 228 589 771 Knockbacks 24 | . . 4 . 5 1 . . . . . . . . . . . . 3 . . . . . . . . . . . . . 11 Impact 5 | . . 4 . 1 . . . . . . . . . . . . . . . . . . . . . . . . . . . . Kinetic 17 | . . . . 3 1 . . . . . . . . . . . . 2 . . . . . . . . . . . . . 11 Secondary 2 | . . . . 1 . . . . . . . . . . . . . 1 . . . . . . . . . . . . . . Self-Inflicted Damage 359 | . . 77 . 37 79 . 34 . 18 . . . 3 . . 18 . . . . 10 39 . . . . . . . . . 44 Shots 14 | . . 2 . 1 2 . 3 . 1 . . . 1 . . 1 . . . . 1 1 . . . . . . . . . 1 Rammed 26 | . . 8 5 6 . 1 . . . . . 3 . 2 . 1 . . . . . . . . . . . . . . . . Targets Rammed 27 | . . 9 5 6 . 1 . . . . . 3 . 2 . 1 . . . . . . . . . . . . . . . . Kicked . | . . . . . . . . . . . . . . . . . . . . . . . . . . . . . . . . . Crushed 1 | . . 1 . . . . . . . . . . . . . . . . . . . . . . . . . . . . . . Highest Temperature 424 | . . 346 78 298 256 234 399 179 262 . 277 227 414 198 223 364 238 210 424 274 234 405 255 24 278 223 2 192 10 95 243 329 Average Temperature 69 | . . 97 31 41 67 70 104 74 99 . 83 58 136 106 63 116 62 67 56 62 78 53 52 15 106 87 2 19 2 50 53 56 Received Heat Transfer 4470 | . 90 474 18 360 144 54 225 9 153 12 558 78 195 18 126 206 168 129 467 39 8 9 18 . 27 295 9 129 . 18 18 416 Effects 15 | . . 4 . . 1 . 3 . . . . . . . . . . . . 1 2 2 . . . . . . . . 1 1 Shutdowns 1 | . . 1 . . . . . . . . . . . . . . . . . . . . . . . . . . . . . . Energy Bleed 5 | . . 1 . . 1 . . . . . . . . . . . . . . 1 1 . . . . . . . . . 1 . Interference 8 | . . 2 . . . . 3 . . . . . . . . . . . . . 1 1 . . . . . . . . . 1 Damage (minor) 1 | . . . . . . . . . . . . . . . . . . . . . . 1 . . . . . . . . . . Siege Activations 3 | . . . . . . . . . . . . 1 2 . . . . . . . . . . . . . . . . . . . Total Turns 66 | . . . . . . . . . . . . 20 46 . . . . . . . . . . . . . . . . . . . Longest Duration 42 | . . . . . . . . . . . . 20 42 . . . . . . . . . . . . . . . . . . . Martial Activations . | . . . . . . . . . . . . . . . . . . . . . . . . . . . . . . . . . Shielding Activations . | . . . . . . . . . . . . . . . . . . . . . . . . . . . . . . . . . Robots Disrupted 1 | . . . . . . . . . . . . . . . . . . . . . . . . . . 1 . . . . . . Combat Hostiles 1 | . . . . . . . . . . . . . . . . . . . . . . . . . . 1 . . . . . . Robots Corrupted 8 | . . 2 . . . . 1 . . . . . . . . 3 . . . . . . . . . 2 . . . . . . Combat Hostiles 4 | . . 1 . . . . 1 . . . . . . . . . . . . . . . . . . 2 . . . . . . Parts Fried 15 | . . 6 . . . 1 2 . . . . . . . . 3 . . . . . . . . . 3 . . . . . . Impact Corruptions 5 | . . 5 . . . . . . . . . . . . . . . . . . . . . . . . . . . . . . Robots Melted 10 | . . . . . . . . . . . . . 1 . 1 . . . . . . . . . . . . . . . . 8 Combat Hostiles 10 | . . . . . . . . . . . . . 1 . 1 . . . . . . . . . . . . . . . . 8 Parts Melted 72 | . . 5 . . 2 1 2 . 2 . 7 6 20 . 2 . . . . . . . . . . 2 . . . . . 23 Heat Transferred 22439 | . . 2296 . . 407 1021 901 259 1602 . 4228 1100 5370 . 150 300 . . . . . . . . . 1456 . 50 . . . 3299 Parts Sabotaged . | . . . . . . . . . . . . . . . . . . . . . . . . . . . . . . . . . Parts Stolen . | . . . . . . . . . . . . . . . . . . . . . . . . . . . . . . . . . Parts Stripped . | . . . . . . . . . . . . . . . . . . . . . . . . . . . . . . . . . Power Chain Reactions 15 | . . 3 . . . 2 3 . 3 . . . . . . 4 . . . . . . . . . . . . . . . . Alert | -11 -10 -9 -9 -8 -8 -8 -8 -8 -8 -7 -7 -7 -7 -6 -6 -5 -5 -4 -4 -4 -4 -3 -3 -3 -3 -3 -2 -2 -1 -1 -1 -1 ------- Run | Yrd Mat Mat Min Mat Gar Mat Gar Mat Gar Fac Gar Fac Gar Fac Gar Fac Gar Fac Gar Fac Gar Res Gar Res Qua Frg Res Gar Acc Gar Acc Com Maximum Alert Level 4 | . . 2 1 1 4 2 3 1 4 2 4 2 3 2 3 2 3 2 1 1 2 2 . . . 2 1 3 2 2 2 2 Low Security (%) 40 | 100 100 40 55 95 12 28 23 . 3 . 11 27 12 61 21 41 . 41 3 98 8 49 100 100 100 85 39 3 . . 33 87 Level 1 23 | . . 21 44 4 13 7 9 100 8 41 25 46 5 6 20 45 23 33 96 1 46 49 . . . 13 60 33 17 13 61 8 Level 2 23 | . . 37 . . 41 64 54 . 5 58 24 26 49 31 23 12 49 25 . . 45 . . . . . . 43 82 86 4 4 Level 3 10 | . . . . . 27 . 12 . 42 . 30 . 33 . 34 . 26 . . . . . . . . . . 19 . . . . Level 4 2 | . . . . . 6 . . . 39 . 9 . . . . . . . . . . . . . . . . . . . . . Level 5 . | . . . . . . . . . . . . . . . . . . . . . . . . . . . . . . . . . High Security . | . . . . . . . . . . . . . . . . . . . . . . . . . . . . . . . . . Max Security . | . . . . . . . . . . . . . . . . . . . . . . . . . . . . . . . . . Peak Influence 1313 | 10 79 607 314 293 1100 625 775 368 1313 688 1156 606 949 497 908 476 899 471 384 214 476 411 188 94 144 404 226 727 558 678 406 537 Initial 688 | . . 8 234 9 98 536 81 367 146 688 146 606 114 497 1 476 226 471 241 186 28 267 114 94 . 57 222 143 422 432 406 130 Average 345 | 1 12 287 171 94 602 379 450 299 952 463 586 298 591 214 490 231 563 285 298 43 371 167 124 41 34 88 203 491 455 517 206 102 Influence Increases 21866 | 40 167 1177 158 989 1012 714 784 168 1317 36 1230 379 895 66 1137 1034 843 798 355 276 608 1012 268 63 617 1324 69 912 379 676 471 1892 Destroy 0b10 Robot/C 8400 | . 100 720 120 580 480 400 380 80 620 15 540 180 435 30 375 300 210 210 30 30 150 300 15 30 165 585 15 420 165 210 45 465 Destroy 0b10 Robot/NC 677 | 40 10 75 10 85 5 35 15 10 8 . 12 32 24 4 . 80 8 12 8 4 . 60 . 4 8 44 20 . 24 . 20 20 Destroy Leader 1274 | . 22 198 20 166 20 84 30 22 50 . 24 76 48 8 16 68 16 32 . 8 8 60 8 2 44 50 10 48 52 40 2 42 Allied During Kill 2711 | . . . 8 2 12 44 20 34 236 2 29 5 23 18 263 437 78 151 15 42 158 225 15 25 198 156 . 109 38 26 43 299 Trap Triggered on 0b10 24 | . . . . . . . . . . . . . . . . . . . . . . . . . . 24 . . . . . . Successful Hack 516 | . 4 22 . 49 12 29 10 22 6 17 18 32 . 1 15 41 . 18 12 33 . 27 12 . 94 3 . . 11 25 . 3 Select Force Hacks 106 | . . 30 . 30 . . . . . . . . . . . . . . . 23 . . . . . . . . 23 . . . Disable Machine 972 | . . 30 . 30 15 60 15 . 30 . 72 12 . . 24 48 . 120 12 48 24 12 24 . 60 228 . 12 . 36 36 24 Anti-Garrison Action 3400 | . . . . . 350 . 200 . 314 . 340 . 227 . 302 . 377 113 190 . 228 . 190 . . . . 228 . 228 113 . Destroy Structure 2190 | . 1 27 . 32 118 17 54 . 38 2 63 42 54 5 94 60 106 118 64 64 40 232 4 2 36 126 24 47 30 15 200 475 Partial Spotted 186 | . . 30 . . . . . . . . . . . . . . . . 12 24 . 12 . . 12 48 . . 12 . 12 24 Lose Combat Pursuer 1410 | . 30 45 . 15 . 45 60 . 15 . 132 . 84 . 48 . 48 24 12 . . 84 . . . 60 . 48 24 96 . 540 Influence Decreases 21448 | 40 146 597 735 862 63 1688 155 698 229 1140 283 1372 109 1013 231 1619 267 1352 344 592 172 1335 253 231 515 1030 274 398 543 539 945 1678 Entered New Map 5834 | . . 13 367 15 53 564 45 388 79 625 63 550 49 452 1 432 97 428 104 170 12 209 39 74 . 45 174 48 283 109 272 74 Time Decay 6904 | 40 136 564 368 567 . 494 . 310 . 230 . 622 . 286 . 592 . 334 . 186 . 355 . 119 323 585 100 . 190 . 198 305 Lost Part 670 | . 10 20 . 20 10 . . . 20 10 40 10 20 . . 20 . 10 . . . 10 40 . . 90 . 70 10 70 . 190 Lost Ally 5650 | . . . . 20 . 180 110 . 130 . 180 40 40 . 230 300 170 430 240 86 160 611 174 38 192 310 . 280 60 360 200 1109 Purge Threat 2390 | . . . . 240 . 450 . . . 275 . 150 . 275 . 275 . 150 . 150 . 150 . . . . . . . . 275 . Squads Dispatched 98 | . 2 4 . 3 . 4 . . . . . 3 . 1 . 7 . 11 . 8 . 18 . 3 8 9 3 . 4 . 5 5 Investigation 22 | . . 1 . 2 . 1 . . . . . . . . . 1 . 6 . 1 . 6 . 1 2 . . . 1 . . . Extermination 26 | . . . . . . . . . . . . 3 . . . 4 . 1 . 1 . 2 . 1 3 5 1 . 1 . 1 3 Reinforcement 34 | . 2 3 . 1 . 1 . . . . . . . 1 . 2 . . . 5 . 9 . 1 . 4 1 . 1 . 1 2 Assault 6 | . . . . . . 2 . . . . . . . . . . . 2 . . . . . . . . . . . . 2 . Garrison 10 | . . . . . . . . . . . . . . . . . . 2 . 1 . 1 . . 3 . 1 . 1 . 1 . Intercept . | . . . . . . . . . . . . . . . . . . . . . . . . . . . . . . . . . Searches Triggered . | . . . . . . . . . . . . . . . . . . . . . . . . . . . . . . . . . Unchained Authorized 4 | . . . . . . . . . . . . . . . . 1 . 1 . . . 1 . 1 . . . . . . . . Construction Impeded 11 | . . . . . . . . . . . . . . . . 2 . . . 1 . 4 . . . 2 . . 1 . 1 . Haulers Reinforced 3 | . . . . . . . . . . . . . . . . . . . . 1 . 2 . . . . . . . . . . Active Scanning Responses . | . . . . . . . . . . . . . . . . . . . . . . . . . . . . . . . . . Cargo Convoy Interrupts 1 | . . . . . . . . . . . . . . . . . . . . . . 1 . . . . . . . . . . Alert ID Control Effect 399 | . . . . . . 5 3 . . 3 5 . 1 . 15 10 20 37 25 31 17 55 12 4 18 23 . 4 . 6 22 83 Stealth | -11 -10 -9 -9 -8 -8 -8 -8 -8 -8 -7 -7 -7 -7 -6 -6 -5 -5 -4 -4 -4 -4 -3 -3 -3 -3 -3 -2 -2 -1 -1 -1 -1 --------- Run | Yrd Mat Mat Min Mat Gar Mat Gar Mat Gar Fac Gar Fac Gar Fac Gar Fac Gar Fac Gar Fac Gar Res Gar Res Qua Frg Res Gar Acc Gar Acc Com Distress Signals 51 | . 1 4 . 3 . 8 . . . . . 3 . . . 3 . 2 . 5 . 9 . . 2 3 1 . 1 . 1 5 Communications Jammed 61 | . . . . . . . . . . . . . . . . . . 18 . . . . . . . 43 . . . . . . Distress Signals 61 | . . . . . . . . . . . . . . . . . . 18 . . . . . . . 43 . . . . . . Times Spotted 1325 | . 14 52 5 38 31 45 31 7 33 8 46 22 36 5 53 38 44 63 40 33 36 89 30 8 48 103 9 48 31 48 15 216 Peak Tracking Total 56 | . 5 6 4 6 5 7 4 3 5 4 7 4 8 2 8 14 11 9 11 9 8 9 10 2 12 11 6 6 15 12 3 56 Tactical Retreats 59 | . 2 2 . 1 . 2 2 . 1 . 7 . 2 . 2 9 3 1 1 . . 5 . . . 4 . 2 1 3 . 9 Traps | -11 -10 -9 -9 -8 -8 -8 -8 -8 -8 -7 -7 -7 -7 -6 -6 -5 -5 -4 -4 -4 -4 -3 -3 -3 -3 -3 -2 -2 -1 -1 -1 -1 ------- Run | Yrd Mat Mat Min Mat Gar Mat Gar Mat Gar Fac Gar Fac Gar Fac Gar Fac Gar Fac Gar Fac Gar Res Gar Res Qua Frg Res Gar Acc Gar Acc Com Traps Triggered 86 | . . . . 1 4 . 8 . 7 . 3 1 2 . 2 1 . 3 4 1 7 3 7 . . 16 1 6 1 6 . 2 Indirectly 6 | . . . . . . . 5 . . . . . . . . 1 . . . . . . . . . . . . . . . . Trap Hack Attempts 23 | . . . . . . . . . . . . . . . . . . . . . . . . . . 23 . . . . . . Triggered . | . . . . . . . . . . . . . . . . . . . . . . . . . . . . . . . . . Disarmed . | . . . . . . . . . . . . . . . . . . . . . . . . . . . . . . . . . Reprogrammed 4 | . . . . . . . . . . . . . . . . . . . . . . . . . . 4 . . . . . . Reused 3 | . . . . . . . . . . . . . . . . . . . . . . . . . . 3 . . . . . . Traps Extracted . | . . . . . . . . . . . . . . . . . . . . . . . . . . . . . . . . . Installed . | . . . . . . . . . . . . . . . . . . . . . . . . . . . . . . . . . Triggered 3 | . . . . . . . . . . . . . . . . . . . . . . . . . . 3 . . . . . . Machines | -11 -10 -9 -9 -8 -8 -8 -8 -8 -8 -7 -7 -7 -7 -6 -6 -5 -5 -4 -4 -4 -4 -3 -3 -3 -3 -3 -2 -2 -1 -1 -1 -1 ---------- Run | Yrd Mat Mat Min Mat Gar Mat Gar Mat Gar Fac Gar Fac Gar Fac Gar Fac Gar Fac Gar Fac Gar Res Gar Res Qua Frg Res Gar Acc Gar Acc Com Machines Disabled 132 | . . 2 . 2 5 4 4 . 5 . 10 1 3 . 7 4 4 11 6 4 6 1 7 . 5 20 . 6 . 9 4 2 Max in Single Turn 2 | . . 1 . 1 1 1 1 . 1 . 1 1 1 . 1 . 1 1 1 1 1 . 1 . 1 1 . 1 . 1 2 . Garrison Access 8 | . . . . . . . . . . . . . . . . . . 2 . . . 2 . . 1 1 . . 1 . 1 . Garrison Relay 48 | . . . . . 2 . 2 . 4 . 3 . 3 . 4 . 4 . 6 . 4 . 5 . . . . 5 . 6 . . Phase Generator 2 | . . . . . 1 . . . 1 . . . . . . . . . . . . . . . . . . . . . . . Machines Repaired . | . . . . . . . . . . . . . . . . . . . . . . . . . . . . . . . . . Machines Dismantled 1 | . . . . . 1 . . . . . . . . . . . . . . . . . . . . . . . . . . . Machines Sabotaged . | . . . . . . . . . . . . . . . . . . . . . . . . . . . . . . . . . Overloaded Fab Kills . | . . . . . . . . . . . . . . . . . . . . . . . . . . . . . . . . . Hacking | -11 -10 -9 -9 -8 -8 -8 -8 -8 -8 -7 -7 -7 -7 -6 -6 -5 -5 -4 -4 -4 -4 -3 -3 -3 -3 -3 -2 -2 -1 -1 -1 -1 --------- Run | Yrd Mat Mat Min Mat Gar Mat Gar Mat Gar Fac Gar Fac Gar Fac Gar Fac Gar Fac Gar Fac Gar Res Gar Res Qua Frg Res Gar Acc Gar Acc Com Machines Accessed 161 | . 1 12 . 16 3 9 3 2 2 5 4 10 1 2 2 6 2 10 4 8 3 15 3 4 11 4 5 3 7 3 . 1 Terminals 108 | . 1 7 . 12 3 5 3 1 2 3 4 5 1 1 2 3 2 4 4 4 3 8 3 3 8 2 3 3 4 3 . 1 Fabricators 6 | . . . . . . . . . . . . . . . . 1 . 2 . 1 . 1 . . . . 1 . . . . . Repair Stations 14 | . . 2 . 1 . 2 . . . 1 . 1 . . . 1 . . . 2 . 1 . . 2 1 . . . . . . Recycling Units 2 | . . 1 . . . . . . . . . 1 . . . . . . . . . . . . . . . . . . . . Scanalyzers 13 | . . 2 . 2 . 1 . . . . . 2 . . . . . 2 . . . 2 . 1 . . . . 1 . . . Garrison Access 18 | . . . . 1 . 1 . 1 . 1 . 1 . 1 . 1 . 2 . 1 . 3 . . 1 1 1 . 2 . . . Total Hacks 404 | . 3 40 . 48 10 27 6 8 4 14 11 29 2 6 4 21 3 22 7 18 8 32 6 5 28 7 7 8 13 5 . 2 Successful 210 | . 3 27 . 41 2 14 3 7 1 6 3 10 . 3 2 16 2 11 2 11 1 12 1 . 17 4 1 . 6 3 . 1 Failed 190 | . . 12 . 6 8 12 3 1 3 8 8 18 2 3 2 5 1 11 5 7 7 20 5 5 11 3 6 8 7 2 . 1 Catastrophic 44 | . . . . 1 3 . . . 3 . . 7 1 1 . . . 5 1 2 1 4 2 2 1 1 3 2 3 1 . . Database Lockouts 4 | . . 1 . 1 . 1 . . . . . 1 . . . . . . . . . . . . . . . . . . . . Manual 162 | . 3 23 . 25 2 12 3 7 . 3 1 8 . 4 1 6 . 5 1 8 . 13 1 . 17 4 5 1 7 2 . . Terminals 259 | . 3 27 . 29 10 18 6 2 4 11 11 15 2 4 4 10 3 7 7 6 8 14 6 3 19 4 5 8 6 5 . 2 Fabricators 20 | . . . . . . . . . . . . . . . . 8 . 6 . 3 . 2 . . . . 1 . . . . . Repair Stations 40 | . . 6 . 8 . 4 . . . 1 . 2 . . . 2 . . . 6 . 4 . . 6 1 . . . . . . Recycling Units 4 | . . 2 . . . . . . . . . 2 . . . . . . . . . . . . . . . . . . . . Scanalyzers 37 | . . 5 . 8 . 2 . . . . . 7 . . . . . 5 . . . 6 . 2 . . . . 2 . . . Garrison Access 44 | . . . . 3 . 3 . 6 . 2 . 3 . 2 . 1 . 4 . 3 . 6 . . 3 2 1 . 5 . . . Terminal Hacks 58 | . . 4 . 9 2 9 2 1 1 2 3 2 . 1 2 4 2 1 2 1 1 1 1 . 2 1 . . . 3 . 1 Record 1 | . . . . . . . . . . . . . . . . . . . . . . 1 . . . . . . . . . . Part Schematic 1 | . . . . . . . . . . . . . . . . 1 . . . . . . . . . . . . . . . . Robot Schematic 3 | . . 1 . . . . . 1 . . . . . . . 1 . . . . . . . . . . . . . . . . Robot Analysis 2 | . . . . . . 1 . . . . . . . . . 1 . . . . . . . . . . . . . . . . Prototype ID Bank 3 | . . . . 2 . . . . . . . . . 1 . . . . . . . . . . . . . . . . . . Open Door 5 | . . . . . . . . . 1 . 1 . . . 1 . . . . . . . . . . . . . . 1 . 1 Branch Access Points 2 | . . . . . . . . . . . . . . . . . . . . 1 . . . . 1 . . . . . . . Emergency Access Points 6 | . . . . . 1 . . . . . 1 . . . 1 . 1 . . . 1 . . . . . . . . 1 . . Machine Index 1 | . . . . . . . . . . . . 1 . . . . . . . . . . . . . . . . . . . . Terminal Index 1 | . . . . 1 . . . . . . . . . . . . . . . . . . . . . . . . . . . . Scanalyzer Index 1 | . . . . . . . . . . 1 . . . . . . . . . . . . . . . . . . . . . . Garrison Index 1 | . . . . 1 . . . . . . . . . . . . . . . . . . . . . . . . . . . . Unreport Threat 8 | . . . . 3 . 3 . . . . . 1 . . . . . 1 . . . . . . . . . . . . . . Locate Traps 2 | . . 1 . . . 1 . . . . . . . . . . . . . . . . . . . . . . . . . . Dispatch Records 1 | . . . . . . 1 . . . . . . . . . . . . . . . . . . . . . . . . . . Recall Reinforcements 1 | . . . . 1 . . . . . . . . . . . . . . . . . . . . . . . . . . . . Hauler Manifests 2 | . . 1 . . . 1 . . . . . . . . . . . . . . . . . . . . . . . . . . Zone Layout 7 | . . 1 . 1 . 2 . . . 1 . . . . . 1 . . . . . . . . 1 . . . . . . . Garrison Registry 3 | . . . . . . . 1 . . . . . . . . . 1 . 1 . . . . . . . . . . . . . Patrol Navigation 2 | . . . . . 1 . . . . . 1 . . . . . . . . . . . . . . . . . . . . . Security Stations 4 | . . . . . . . 1 . . . . . . . . . . . 1 . . . 1 . . . . . . 1 . . Proto ID Catalog 1 | . . . . . . . . . . . . . . . . . . . . . . . . . . 1 . . . . . . Fabricator Hacks 12 | . . . . . . . . . . . . . . . . 7 . 4 . 1 . . . . . . . . . . . . Network Status 2 | . . . . . . . . . . . . . . . . . . 1 . 1 . . . . . . . . . . . . Load Schematic 5 | . . . . . . . . . . . . . . . . 3 . 2 . . . . . . . . . . . . . . Build 5 | . . . . . . . . . . . . . . . . 4 . 1 . . . . . . . . . . . . . . Repair Station Hacks 22 | . . 5 . 8 . 2 . . . . . 1 . . . 2 . . . 2 . . . . 2 . . . . . . . Scan Component 13 | . . 3 . 4 . 1 . . . . . 1 . . . 1 . . . 2 . . . . 1 . . . . . . . Repair 9 | . . 2 . 4 . 1 . . . . . . . . . 1 . . . . . . . . 1 . . . . . . . Recycling Unit Hacks 1 | . . 1 . . . . . . . . . . . . . . . . . . . . . . . . . . . . . . Retrieve Components 1 | . . 1 . . . . . . . . . . . . . . . . . . . . . . . . . . . . . . Scanalyzer 20 | . . 5 . 6 . 1 . . . . . 3 . . . . . 1 . . . 4 . . . . . . . . . . Insert Component 5 | . . 2 . 2 . . . . . . . . . . . . . . . . . 1 . . . . . . . . . . Analyze 2 | . . 1 . 1 . . . . . . . . . . . . . . . . . . . . . . . . . . . . Retrieve Study 13 | . . 2 . 3 . 1 . . . . . 3 . . . . . 1 . . . 3 . . . . . . . . . . Garrison Access Hacks 29 | . . . . 1 . 1 . 1 . 1 . 2 . 1 . 1 . 4 . 2 . 6 . . 2 2 1 . 4 . . . Unlock Access 13 | . . . . 1 . 1 . 1 . 1 . 1 . 1 . 1 . 1 . 1 . 1 . . 1 . 1 . 1 . . . Seal Access 6 | . . . . . . . . . . . . . . . . . . 1 . . . 2 . . 1 1 . . 1 . . . Coupler Status 10 | . . . . . . . . . . . . 1 . . . . . 2 . 1 . 3 . . . 1 . . 2 . . . Unauthorized Hacks 68 | . 3 12 . 17 . 1 1 5 . 3 . 2 . 1 . 2 . 1 . 5 . 1 . . 11 1 . . 2 . . . Terminals 54 | . 3 11 . 15 . . 1 . . 2 . 2 . 1 . 2 . . . 3 . 1 . . 11 1 . . 1 . . . Track 3 | . . . . 1 . . 1 . . . . . . . . . . . . . . . . . . 1 . . . . . . Assimilate 6 | . . 2 . . . . . . . . . . . 1 . 1 . . . 1 . . . . 1 . . . . . . . Botnet 16 | . 1 2 . 2 . . . . . 1 . 1 . . . 1 . . . 1 . 1 . . 5 . . . 1 . . . Operators 7 | . 1 2 . 2 . . . . . . . 1 . . . . . . . 1 . . . . . . . . . . . . Skim 22 | . 1 5 . 10 . . . . . 1 . . . . . . . . . . . . . . 5 . . . . . . . Fabricators 2 | . . . . . . . . . . . . . . . . . . 1 . 1 . . . . . . . . . . . . Haulers 1 | . . . . . . . . . . . . . . . . . . . . 1 . . . . . . . . . . . . Recompile 1 | . . . . . . . . . . . . . . . . . . 1 . . . . . . . . . . . . . . Repair Stations 1 | . . . . . . 1 . . . . . . . . . . . . . . . . . . . . . . . . . . Mechanics 1 | . . . . . . 1 . . . . . . . . . . . . . . . . . . . . . . . . . . Recycling Units 1 | . . 1 . . . . . . . . . . . . . . . . . . . . . . . . . . . . . . Tunnel 1 | . . 1 . . . . . . . . . . . . . . . . . . . . . . . . . . . . . . Scanalyzers . | . . . . . . . . . . . . . . . . . . . . . . . . . . . . . . . . . Garrison Access 10 | . . . . 2 . . . 5 . 1 . . . . . . . . . 1 . . . . . . . . 1 . . . Broadcast 1 | . . . . . . . . 1 . . . . . . . . . . . . . . . . . . . . . . . . Restock 1 | . . . . . . . . 1 . . . . . . . . . . . . . . . . . . . . . . . . Reprogram 3 | . . . . 1 . . . 1 . 1 . . . . . . . . . . . . . . . . . . . . . . Intercept 1 | . . . . . . . . 1 . . . . . . . . . . . . . . . . . . . . . . . . Watchers 1 | . . . . . . . . 1 . . . . . . . . . . . . . . . . . . . . . . . . Eject 3 | . . . . 1 . . . . . . . . . . . . . . . 1 . . . . . . . . 1 . . . Data Cores Recovered 8 | . . . . . . 1 . . . . . 1 . 1 . . . . . . . 1 . . 1 1 1 . 1 . . . Used 3 | . . . . . . . . . . . . . . 1 . . . . . . . . . . . . 1 . 1 . . . Hacking Detections 142 | . 1 10 . 15 3 8 3 2 2 4 3 10 1 2 1 4 2 9 3 7 3 12 3 4 10 3 5 3 6 2 . 1 Full Trace Events 20 | . . . . 1 2 1 . . 1 . 2 . 1 . . . . 4 . . 2 4 . . 1 . . 1 . . . . Feedback Events 1 | . . . . . . . . . . . . . . . . . . . . . . 1 . . . . . . . . . . Corruption 1 | . . . . . . . . . . . . . . . . . . . . . . 1 . . . . . . . . . . Feedback Blocked . | . . . . . . . . . . . . . . . . . . . . . . . . . . . . . . . . . Robot Schematics Acquired 9 | . . 1 . . . . . 1 . . . . . . . 1 . . . . . . . . . 6 . . . . . . Robots Built 6 | . . . . . . . . . . . . . . . . 6 . . . . . . . . . . . . . . . . Authchips 3 | . . . . . . . . . . . . . . . . 3 . . . . . . . . . . . . . . . . Time 252 | . . . . . . . . . . . . . . . . 252 . . . . . . . . . . . . . . . . Total Robot Build Rating 36 | . . . . . . . . . . . . . . . . 36 . . . . . . . . . . . . . . . . Part Schematics Acquired 6 | . . 1 . 1 . . . . . . . . . . . 1 . . . . . . . . . 3 . . . . . . Parts Built 4 | . . . . . . . . . . . . . . . . 2 . 2 . . . . . . . . . . . . . . Authchips 1 | . . . . . . . . . . . . . . . . . . 1 . . . . . . . . . . . . . . Time 133 | . . . . . . . . . . . . . . . . 69 . 64 . . . . . . . . . . . . . . Total Part Build Rating 34 | . . . . . . . . . . . . . . . . 18 . 16 . . . . . . . . . . . . . . Part Studies Acquired 13 | . . 2 . 3 . 1 . . . . . 3 . . . . . 1 . . . 3 . . . . . . . . . . Parts Repaired 9 | . . 2 . 4 . 1 . . . . . . . . . 1 . . . . . . . . 1 . . . . . . . Time 496 | . . 52 . 178 . 136 . . . . . . . . . 62 . . . . . . . . 68 . . . . . . . Parts Recycled . | . . . . . . . . . . . . . . . . . . . . . . . . . . . . . . . . . Recycled Matter . | . . . . . . . . . . . . . . . . . . . . . . . . . . . . . . . . . Retrieved Matter . | . . . . . . . . . . . . . . . . . . . . . . . . . . . . . . . . . Retrieved Components 4 | . . 4 . . . . . . . . . . . . . . . . . . . . . . . . . . . . . . Parts Scanalyzed 2 | . . 1 . 1 . . . . . . . . . . . . . . . . . . . . . . . . . . . . Part Schematics Acquired 2 | . . 1 . 1 . . . . . . . . . . . . . . . . . . . . . . . . . . . . Parts Damaged 1 | . . . . 1 . . . . . . . . . . . . . . . . . . . . . . . . . . . . Bothacking | -11 -10 -9 -9 -8 -8 -8 -8 -8 -8 -7 -7 -7 -7 -6 -6 -5 -5 -4 -4 -4 -4 -3 -3 -3 -3 -3 -2 -2 -1 -1 -1 -1 ------------ Run | Yrd Mat Mat Min Mat Gar Mat Gar Mat Gar Fac Gar Fac Gar Fac Gar Fac Gar Fac Gar Fac Gar Res Gar Res Qua Frg Res Gar Acc Gar Acc Com Used RIF Installer 14 | . . . . . 2 . 2 . 1 . 1 . 1 . 1 . 1 . 1 . 1 . 1 . . . . 1 . 1 . . Coupler Efficiency 3 | . . . . . . . . . . . . . 1 . 1 . . . 1 . . . . . . . . . . . . . Hotswap 1 | . . . . . . . . . . . 1 . . . . . . . . . . . . . . . . . . . . . Threat Obfuscator 1 | . . . . . . . . . 1 . . . . . . . . . . . . . . . . . . . . . . . Robot Detection 1 | . . . . . . . . . . . . . . . . . . . . . . . 1 . . . . . . . . . Watcher Feeds 1 | . . . . . . . . . . . . . . . . . . . . . 1 . . . . . . . . . . . Patrol Navigation 1 | . . . . . . . . . . . . . . . . . . . . . . . . . . . . . . 1 . . Alert ID Control 1 | . . . . . 1 . . . . . . . . . . . . . . . . . . . . . . . . . . . Structural Interface 1 | . . . . . . . . . . . . . . . . . 1 . . . . . . . . . . . . . . . Autooverride 1 | . . . . . . . 1 . . . . . . . . . . . . . . . . . . . . . . . . . Autoassimilate 1 | . . . . . . . 1 . . . . . . . . . . . . . . . . . . . . . . . . . Crosswire 1 | . . . . . . . . . . . . . . . . . . . . . . . . . . . . 1 . . . . Robots Hacked 502 | . . . . . 5 11 9 4 8 3 9 . 9 1 19 16 18 24 20 27 23 34 26 9 30 29 . 14 13 32 15 94 Non-combat 63 | . . . . . . 4 . 4 . 1 . . . 1 . 9 1 7 . 8 . 9 . 3 2 4 . . 5 . 4 1 Combat 439 | . . . . . 5 7 9 . 8 2 9 . 9 . 19 7 17 17 20 19 23 25 26 6 28 25 . 14 8 32 11 93 Autooverrided 45 | . . . . . . . 1 . . . 1 . 1 . 2 . 4 2 1 1 1 . 2 . 1 4 . 2 . 2 . 20 Autoassimilated 109 | . . . . . . . . . 1 . 3 . 2 . 3 2 1 . 2 2 7 2 4 1 5 3 . 2 2 4 . 63 Robot Hacks Applied 391 | . . . . . 5 13 8 5 9 7 6 . 6 3 14 17 13 32 20 28 15 32 22 8 28 23 . 11 11 26 16 13 parse_system 18 | . . . . . . . 1 . . 1 2 . 1 . . . . 3 2 . . 1 2 . 2 3 . . . . . . no_distress 1 | . . . . . . . . 1 . . . . . . . . . . . . . . . . . . . . . . . . ignore_repairs 3 | . . . . . . . . . . . . . . . . . . 1 . 1 . . . . . . . . . . 1 . map_walls 1 | . . . . . . . . 1 . . . . . . . . . . . . . . . . . . . . . . . . find_fabricator 2 | . . . . . . . . . . . . . . . . . . 1 . 1 . . . . . . . . . . . . find_dsf 2 | . . . . . . . . . . . . . . . . . . 1 . 1 . . . . . . . . . . . . drop_inventory 18 | . . . . . . 1 . 1 . . . . . . . 4 . 2 . 3 . 3 . 1 . . . . 2 . 1 . locate_stockpiles 1 | . . . . . . . . . . . . . . . . . . 1 . . . . . . . . . . . . . . find_recycling 1 | . . . . . . . . . . . . . . . . . . . . 1 . . . . . . . . . . . . ignore_parts 2 | . . . . . . . . . . . . . . . . 2 . . . . . . . . . . . . . . . . find_station 1 | . . . . . . 1 . . . . . . . . . . . . . . . . . . . . . . . . . . purge_threat 10 | . . . . . . . . . . 2 . . . 2 . 2 . . . 1 . 1 . . . . . . . . 2 . block_reporting 7 | . . . . . . . . . . 1 . . . . . 1 . 1 . . . . . . 2 2 . . . . . . map_route 16 | . . . . . . 1 . 1 . . . . . . . 1 . 2 . 1 . 3 . 1 . 1 . . 3 . 1 1 mark_security 1 | . . . . . . . . . . . . . . . . . . . . 1 . . . . . . . . . . . . find_shortcuts 2 | . . . . . . . . . 2 . . . . . . . . . . . . . . . . . . . . . . . find_garrison 4 | . . . . . . 1 . . . . . . . . . . . 2 . 1 . . . . . . . . . . . . scatter_targeting 1 | . . . . . . . . . . . . . . . . . . . . . . . . . 1 . . . . . . . disrupt_area 5 | . . . . . . . 1 . . . . . . . . . . . . . . . . . 2 1 . 1 . . . . spike_heat 1 | . . . . . . . . . 1 . . . . . . . . . . . . . . . . . . . . . . . amplify_resonance 11 | . . . . . 1 . 1 . 1 . 1 . 1 . . . . . . . 1 1 1 . 1 . . 1 . 1 . . wipe_record 1 | . . . . . . . . . 1 . . . . . . . . . . . . . . . . . . . . . . . reboot_system 2 | . . . . . . . 1 . . . . . . . . . . . . . . . . . . . . . . 1 . . overwrite_iff 49 | . . . . . . 2 1 . 2 1 1 . . . 3 . 4 3 5 1 . 4 1 1 5 6 . 3 . 1 2 3 formatsys_low 17 | . . . . . . 2 . 1 . 1 . . . 1 . 2 1 3 1 . . 1 . 1 1 2 . . . . . . formatsys_high 213 | . . . . . 4 5 3 . 2 1 2 . 4 . 11 5 8 12 12 16 14 18 18 4 14 8 . 6 6 22 9 9 formatsys_deep 1 | . . . . . . . . . . . . . . . . . . . . . . . . . . . . . . 1 . . Relay Couplers Released 217 | . . . . 3 8 . 7 4 15 . 12 4 10 . 17 . 17 1 24 3 17 3 16 . 3 . . 21 3 26 3 . Ejected 9 | . . . . 3 . . . . . . . . . . . . . . . 3 . . . . . . . . 3 . . . Machine Destruction 200 | . . . . . 8 . 7 . 15 . 12 . 10 . 17 . 17 1 24 . 17 3 16 . 3 . . 21 . 26 3 . Programmers 8 | . . . . . . . . 4 . . . 4 . . . . . . . . . . . . . . . . . . . . Attached 90 | . . . . . 3 5 3 1 4 3 1 . 2 1 2 4 2 7 7 5 5 3 5 1 5 2 1 2 2 7 2 5 Crosswired 19 | . . . . . . . . . . . . . . . . . . . . . . . . . . . . 5 1 13 . . Fabnet Peak Effective % . | . . . . . . . . . . . . . . . . . . . . . . . . . . . . . . . . . Robots Rewired 38 | . . . . . 3 . 3 . 4 . 3 . . . 7 . 4 1 3 . . . 3 . . . . 4 . 3 . . Allies Hacked 26 | . . . . . . . . . 1 . . . . . . 1 . . 1 . . 3 2 . 2 1 . 2 . . 4 9 Hacks Repelled 1 | . . . . . . . . . . . . . . . . 1 . . . . . . . . . . . . . . . . Allies | -11 -10 -9 -9 -8 -8 -8 -8 -8 -8 -7 -7 -7 -7 -6 -6 -5 -5 -4 -4 -4 -4 -3 -3 -3 -3 -3 -2 -2 -1 -1 -1 -1 -------- Run | Yrd Mat Mat Min Mat Gar Mat Gar Mat Gar Fac Gar Fac Gar Fac Gar Fac Gar Fac Gar Fac Gar Res Gar Res Qua Frg Res Gar Acc Gar Acc Com Total Allies 490 | . . . 3 . 7 9 8 1 9 3 12 . 9 1 26 16 22 21 23 20 22 25 28 7 26 22 . 19 8 35 15 93 Largest Group 43 | . . . 3 2 7 9 4 6 9 4 6 2 7 5 13 22 11 12 8 17 21 26 15 17 17 10 . 5 5 17 24 43 Highest-Rated Group 2673 | . . . 40 24 92 121 84 94 193 89 115 45 300 264 522 896 484 719 472 1017 1192 1525 888 906 1725 868 . 298 184 1115 1794 2673 Highest-Rated Ally 344 | . . . 16 16 16 29 29 16 39 32 32 25 95 95 95 95 85 142 116 142 142 142 116 64 344 344 . 119 64 219 219 219 Total Orders 88 | . . . . . . 2 1 1 5 2 4 . . . 2 8 6 5 9 2 2 4 2 . 10 15 . . 1 . . 7 STAY 32 | . . . . . . . . . 2 1 2 . . . 1 2 2 . 2 . . 2 . . 7 6 . . 1 . . 4 ROAM 3 | . . . . . . . . . . . . . . . . . . . . . 1 1 1 . . . . . . . . . FOLLOW 25 | . . . . . . . . . 2 1 2 . . . 1 2 2 . 1 . . . 1 . 3 7 . . . . . 3 AID 25 | . . . . . . 2 1 1 1 . . . . . . 1 2 5 6 2 1 1 . . . 2 . . . . . . EXPLORE 3 | . . . . . . . . . . . . . . . . 3 . . . . . . . . . . . . . . . . Ally Attacks 2673 | . . . . 8 10 65 44 32 101 17 59 3 25 6 154 185 95 201 85 121 91 333 91 31 160 153 . 98 22 61 93 329 Total Damage 96255 | . . . . 99 221 863 505 360 1505 189 1336 104 1052 216 4167 5532 3354 7597 3298 4861 2618 10815 2788 926 5846 6158 . 2631 520 2850 4967 20877 Kills 567 | . . . . . 4 9 4 3 16 4 9 . 5 2 31 50 22 43 27 34 18 73 13 5 24 30 . 13 . 7 25 96 Allies Corrupted 24 | . . . . . . . . . . . . . . . . . . . . . . 1 1 2 2 . . 3 . 1 3 11 Allies Melted 4 | . . . . . . 1 . . . . . . . . . . . . . . . 1 . . . . . 1 . . . 1 Intel | -11 -10 -9 -9 -8 -8 -8 -8 -8 -8 -7 -7 -7 -7 -6 -6 -5 -5 -4 -4 -4 -4 -3 -3 -3 -3 -3 -2 -2 -1 -1 -1 -1 ------- Run | Yrd Mat Mat Min Mat Gar Mat Gar Mat Gar Fac Gar Fac Gar Fac Gar Fac Gar Fac Gar Fac Gar Res Gar Res Qua Frg Res Gar Acc Gar Acc Com Active Infowar (turns) 9078 | 152 844 105 . 1 . 185 . . . 124 . 302 2 1 . 1504 69 304 189 182 . 569 112 126 811 1162 203 58 333 27 407 1306 Optics 1897 | . . . . . . 185 . . . . . . . . . . . . . . . 1 . . . . . . . . 405 1306 Sensors 4252 | . . . . 1 . . . . . . . 242 . . . 1504 4 211 . 182 . 426 . 126 703 853 . . . . . . IFF 1 | . . . . . . . . . . . . . . 1 . . . . . . . . . . . . . . . . . . Terrain 473 | 144 247 81 . . . . . . . . . . . . . . . . . . . . . . . . . . 1 . . . Structural 78 | . . . . . . . . . . . . . . . . . . . . . . . . . . . . . . . 78 . Seismic 956 | 8 597 24 . . . . . . . . . 60 . . . . . . . . . . . . . . 150 58 59 . . . T.N.C. 99 | . . . . . . . . . . . . . 2 . . . . . . . . 97 . . . . . . . . . . Machine Analysis 189 | . . . . . . . . . . 124 . . . . . . 65 . . . . . . . . . . . . . . . Cloaking 1323 | . . . . . . . . . . . . . . . . . . . . . . . . . . 94 203 28 333 27 407 231 Jamming 769 | . . . . . . . . . . . . . . . . . . 93 189 . . 45 112 . 108 222 . . . . . . Robot Analysis Total 2 | . . . . . . 1 . . . . . . . . . 1 . . . . . . . . . . . . . . . . Derelict Logs Recovered 1 | . . . 1 . . . . . . . . . . . . . . . . . . . . . . . . . . . . . Drone Launches 3 | . . . . . . . . . . . . . . . . 3 . . . . . . . . . . . . . . . . Drone Recoveries . | . . . . . . . . . . . . . . . . . . . . . . . . . . . . . . . . . Exploration | -11 -10 -9 -9 -8 -8 -8 -8 -8 -8 -7 -7 -7 -7 -6 -6 -5 -5 -4 -4 -4 -4 -3 -3 -3 -3 -3 -2 -2 -1 -1 -1 -1 ------------- Run | Yrd Mat Mat Min Mat Gar Mat Gar Mat Gar Fac Gar Fac Gar Fac Gar Fac Gar Fac Gar Fac Gar Res Gar Res Qua Frg Res Gar Acc Gar Acc Com Turns Passed 38692 | 243 844 1804 852 2042 1664 1307 1555 682 2001 489 1983 2111 1396 630 1833 1867 2129 755 932 570 713 1190 853 331 1448 2689 207 774 389 696 407 1306 Spaces Moved 28584 | 106 322 749 499 878 745 460 559 355 1121 347 976 1117 617 371 916 932 1068 871 1052 718 948 1527 1045 530 1826 2986 371 1006 660 1026 509 1371 Core 76 | 14 . . . . . . . . . . . . . . . . . . . . . . . . . . . . . . . 62 Treads 9699 | 92 322 749 499 878 745 460 496 . . . 394 1117 617 371 916 932 1068 42 . . . . . . . . . . . . . 1 Legs 235 | . . . . . . . . . . . . . . . . . . . . . . . . . . . . . . . . 235 Wheels 2468 | . . . . . . . 63 355 1121 347 582 . . . . . . . . . . . . . . . . . . . . . Hover 16051 | . . . . . . . . . . . . . . . . . . 829 1052 718 948 1527 1045 530 1826 2986 371 1006 660 1026 509 1018 Flight 55 | . . . . . . . . . . . . . . . . . . . . . . . . . . . . . . . . 55 Fastest Speed 30 | 50 160 160 160 158 161 216 145 145 145 108 123 160 160 160 160 160 157 48 45 45 45 45 45 39 39 30 40 40 36 36 33 33 Average Speed 95 | 155 160 171 160 162 170 220 219 145 145 115 153 160 160 160 160 160 157 54 47 46 45 46 47 42 39 48 40 43 36 38 34 50 Slowest Speed 400 | 250 160 240 160 217 216 229 229 145 160 125 400 160 160 160 160 165 165 157 48 148 45 48 48 135 45 139 40 100 36 44 40 183 Overloaded Moves 33 | . . . . . . . . . . . . . . . . . . . . . . . . . 5 28 . . . . . . Propulsion Burnouts . | . . . . . . . . . . . . . . . . . . . . . . . . . . . . . . . . . Robots Hopped 1 | . . . . . . . . . . . . . . . . . . . . . . . . . . . . . . . . 1 Potential Cave-ins 2 | . . . . . . . . . . . . . . . . . . . . . . . . . . . . . . . . 2 Cave-ins Triggered . | . . . . . . . . . . . . . . . . . . . . . . . . . . . . . . . . . Teleports 16 | . . . . . . . . . . . . . . . . . . . . . . . . . . 16 . . . . . . Exploration Rate (%) 56 | 4 33 82 95 84 98 44 62 18 96 9 91 34 80 8 92 33 89 21 84 24 90 49 97 13 96 51 17 96 31 92 14 33 Regions Visited 32 Branch Regions 4 Pre-discovered Areas 7 | . . 4 . 3 . . . . . . . . . . . . . . . . . . . . . . . . . . . . Known Exits Taken 17 | . . 1 1 1 . 1 . 1 . 1 . 1 . 1 . 1 . 1 . 1 . 1 . 1 1 1 1 . 1 . . . Unknown Exits Taken 3 | 1 1 . . . . . . . . . . . . . . . . . . . . . . . . . . . . . 1 . Scrap Searched 1 | . . . 1 . . . . . . . . . . . . . . . . . . . . . . . . . . . . . Spaces Dug 152 | . . . . 11 7 11 4 . 8 2 2 17 6 . . . 3 . 3 1 . 13 . . 12 9 8 3 10 2 14 6 Terrain Destroyed 427 | . . 21 . 32 52 13 4 . 8 2 2 39 6 . . 10 6 15 7 2 19 35 . . 13 9 8 15 10 2 17 80 Melee 101 | . . . . . . . . . . 2 . 17 6 . . . 3 . 3 1 . 12 . . 12 8 8 3 10 2 8 6 Projectile 153 | . . . . 15 5 3 . . . . 2 11 . . . 2 3 15 4 1 3 3 . . 1 1 . 1 . . 9 74 AOE 167 | . . 21 . 17 47 10 4 . 8 . . 11 . . . 7 . . . . 16 15 . . . . . 11 . . . . Terrain Rammed . | . . . . . . . . . . . . . . . . . . . . . . . . . . . . . . . . . Walls Destroyed . | . . . . . . . . . . . . . . . . . . . . . . . . . . . . . . . . . Machines Disabled . | . . . . . . . . . . . . . . . . . . . . . . . . . . . . . . . . . Actions | -11 -10 -9 -9 -8 -8 -8 -8 -8 -8 -7 -7 -7 -7 -6 -6 -5 -5 -4 -4 -4 -4 -3 -3 -3 -3 -3 -2 -2 -1 -1 -1 -1 --------- Run | Yrd Mat Mat Min Mat Gar Mat Gar Mat Gar Fac Gar Fac Gar Fac Gar Fac Gar Fac Gar Fac Gar Res Gar Res Qua Frg Res Gar Acc Gar Acc Com Total 37558 | 142 584 1083 525 1321 989 679 788 508 1373 427 1299 1374 845 398 1193 1213 1417 1088 1426 940 1216 1880 1365 626 2461 4068 414 1292 786 1303 686 1849 Wait 3866 | 7 220 112 9 270 52 108 63 122 18 27 81 127 56 4 81 127 107 70 179 132 155 100 143 51 491 489 1 68 48 94 86 168 Move 28545 | 105 321 748 498 877 743 459 558 354 1119 346 974 1117 615 370 914 932 1066 870 1051 717 947 1527 1044 529 1825 2985 371 1004 659 1024 508 1368 Hop 1 | . . . . . . . . . . . . . . . . . . . . . . . . . . . . . . . . 1 Pick Up 479 | 3 5 32 1 21 20 12 10 5 23 7 18 18 8 4 18 19 30 12 22 9 12 18 16 6 13 56 6 14 6 22 4 9 Fast Attach 241 | 7 . 17 . 12 9 2 8 1 . 6 10 11 11 2 6 4 4 2 7 4 2 13 4 4 4 40 3 8 3 4 2 31 Attach 186 | . 1 5 . 5 5 1 7 2 6 5 6 7 6 2 3 13 5 15 5 4 1 8 7 4 3 20 3 6 3 5 3 20 Detach 132 | . . 4 . 6 2 2 8 1 . 5 4 5 6 1 3 5 4 7 5 6 . 9 1 2 2 16 3 5 . . 3 17 Swap 603 | 1 5 25 1 14 24 32 26 6 31 10 14 19 29 3 31 30 28 22 23 8 9 44 11 1 15 69 4 13 11 15 11 18 Drop 496 | . . 43 1 25 21 11 15 4 19 9 27 23 14 3 24 11 27 7 20 4 11 20 11 10 10 71 6 10 5 12 4 18 Fire 1466 | 19 32 65 10 84 77 46 57 13 63 9 79 8 48 6 51 69 50 74 49 51 32 84 38 12 49 63 . 19 13 36 27 133 Melee 701 | . . 23 . 1 6 . 8 . 13 3 24 36 46 . 20 1 29 2 20 1 1 27 17 7 40 144 17 56 33 45 33 48 Ram . | . . . . . . . . . . . . . . . . . . . . . . . . . . . . . . . . . Kick . | . . . . . . . . . . . . . . . . . . . . . . . . . . . . . . . . . Crush 27 | . . 9 5 6 . 1 . . . . . 3 . 2 . 1 . . . . . . . . . . . . . . . . Escape Stasis 405 | . . . . . 2 . 4 . 54 . 16 . 2 . . . . 2 20 . 36 26 68 . . 86 . 52 . 25 . 12 Rewire 378 | . . . . . 19 5 24 . 27 . 46 . 4 1 42 1 67 5 25 4 10 4 5 . 9 6 . 37 5 21 5 6 Trap 23 | . . . . . . . . . . . . . . . . . . . . . . . . . . 23 . . . . . . Miscellaneous 9 | . . . . . 9 . . . . . . . . . . . . . . . . . . . . . . . . . . . Route ------- -11/Scrapyard -10/Materials (discovered 2 exits: *Mat / [*Min]) -9/Materials (discovered 4 exits: *Mat x3 / *Min) -9/Mines (discovered 3 exits: *Mat x2 / [*Zio]) -8/Materials (discovered 4 exits: *Fac x3 / Gar) -8/Garrison (discovered 3 exits: *Mat x3) -8/Materials (discovered 4 exits: Fac x3 / Gar) -8/Garrison (discovered 4 exits: Fac x3 / *Mat) -8/Materials (discovered 2 exits: Fac / Gar) -8/Garrison (discovered 3 exits: *Fac x3) -7/Factory (discovered 4 exits: Fac / Sto / Low / Gar) -7/Garrison (discovered 3 exits: *Fac x3) -7/Factory (discovered 2 exits: *Fac / Gar) -7/Garrison (discovered 3 exits: *Fac x3) -6/Factory -6/Garrison (discovered 3 exits: *Fac x3) -5/Factory (discovered 3 exits: *Fac / Ext / Gar) -5/Garrison (discovered 3 exits: *Fac x3) -4/Factory (discovered 2 exits: *Res / Gar) -4/Garrison (discovered 4 exits: *Res x3 / *Fac) -4/Factory (discovered 4 exits: *Res / Upp x2 / Gar) -4/Garrison (discovered 3 exits: *Res x3) -3/Research (discovered 3 exits: *Res x2 / Gar) -3/Garrison (discovered 4 exits: *Res x3 / *Res) -3/Research -3/Quarantine (discovered 3 exits: *Res / *Sec / *Frg) -3/Protoforge -2/Research -2/Garrison (discovered 3 exits: *Acc x3) -1/Access -1/Garrison (discovered 3 exits: [*Acc x3]) -1/Access -1/Command (discovered 2 exits: *Sur x2) To Epsilon Eridani History --------- Turn | Location | Event 6 | -11/Scrapyard | Discovered new exit (range 16) 244 | -11/Scrapyard | Entered Materials 314 | -10/Materials | Build established: Mutant 410 | -10/Materials | Discovered new exit (range 6) 489 | -10/Materials | Discovered new exit (range 3) 1088 | -10/Materials | Entered another Materials area 1088 | -9/Materials | Evolved 2 slots: Weapon x2 1468 | -9/Materials | Discovered new exit (range 12) 1538 | -9/Materials | Build established: Scavenger-Gunner 1996 | -9/Materials | Build established: Gunner 2140 | -9/Materials | Repaired Lgt. Treads+ 2177 | -9/Materials | Repaired Lgt. Treads+ 2361 | -9/Materials | Central database locked down 2495 | -9/Materials | Discovered new exit (range 14) 2535 | -9/Materials | Learned location of Recycling (-7) 2593 | -9/Materials | Identified exit to Materials 2610 | -9/Materials | Identified exit to Mines 2610 | -9/Materials | Learned location of 2 exits from Materials 2628 | -9/Materials | Learned location of 2 exits from Materials 2682 | -9/Materials | Learned Storage stockpile data 2892 | -9/Materials | Entered Mines 2951 | -9/Mines | Assisted by bots powering up and referring to "LRC-V3" 2975 | -9/Mines | A Derelict revealed a hidden shortcut to a safe place 3087 | -9/Mines | Learned 2 Materials zone layouts 3349 | -9/Mines | Found a damaged Exp. Sensor Array with a note attached 3355 | -9/Mines | Found Prototype Device 3487 | -9/Mines | Found a hidden stash of uninstalled traps 3523 | -9/Mines | Discovered exit to Materials (range 5) 3615 | -9/Mines | A weapon hastily lodged in a ceiling crevice suddenly fell to the ground 3744 | -9/Mines | Entered Materials 3744 | -8/Materials | Accompanied by 2 allies 3744 | -8/Materials | Evolved 2 slots: Propulsion x1, Utility x1 3745 | -8/Materials | Identified exit to Factory 3841 | -8/Materials | Destroyed 9 combat bots 3861 | -8/Materials | Identified Exp. Sensor Array 4169 | -8/Materials | Build established: Scavenger-Gunner 4592 | -8/Materials | Learned Storage emergency access door positions 4624 | -8/Materials | Learned Factory stockpile data 4645 | -8/Materials | Learned location of 2 exits from Factory 4654 | -8/Materials | Learned location of 1 exit from Storage 4657 | -8/Materials | Learned location of Zion (-7) 4668 | -8/Materials | Repaired Arm. Treads 4720 | -8/Materials | Repaired Imp. Assault Rifle 4760 | -8/Materials | Repaired Hvy. Assault Cannon+ 4812 | -8/Materials | Repaired Imp. Assault Rifle 5271 | -8/Materials | Learned Factory stockpile data 5323 | -8/Materials | Learned Storage stockpile data 5367 | -8/Materials | Learned Storage security intel 5401 | -8/Materials | Learned location of 1 exit from Recycling 5416 | -8/Materials | Central database locked down 5423 | -8/Materials | Learned Factory security intel 5436 | -8/Materials | Learned 4 Recycling zone layouts 5461 | -8/Materials | Learned 4 Lower Caves zone layouts 5752 | -8/Materials | Identified exit to Garrison 5786 | -8/Materials | Entered Garrison 6052 | -8/Garrison | Triggered checkpoint 6130 | -8/Garrison | Discovered new exit (range 10) 6198 | -8/Garrison | Triggered checkpoint 6313 | -8/Garrison | Triggered checkpoint 6368 | -8/Garrison | Core integrity fell below 50% 6498 | -8/Garrison | Discovered new exit (range 10) 6508 | -8/Garrison | Build established: Hacker-Gunner 6540 | -8/Garrison | Installed Relay Interface Framework 6612 | -8/Garrison | Triggered checkpoint 6801 | -8/Garrison | Phase Generator disabled 6846 | -8/Garrison | Triggered checkpoint 6866 | -8/Garrison | Triggered checkpoint 6884 | -8/Garrison | Triggered checkpoint 6932 | -8/Garrison | Garrison Relay disabled 7029 | -8/Garrison | Discovered new exit (range 10) 7094 | -8/Garrison | Expanded RIF knowledge: Alert ID Control 7251 | -8/Garrison | Build established: Bothacker-Gunner 7345 | -8/Garrison | Garrison Relay disabled 7450 | -8/Garrison | Entered Materials 7450 | -8/Materials | Accompanied by 7 allies 7640 | -8/Materials | Repaired Broken Exp. Sensor Array 7850 | -8/Materials | First assault squad dispatched 7853 | -8/Materials | Central database locked down 7944 | -8/Materials | Lost 7 allies 7962 | -8/Materials | Destroyed 7 combat bots 8738 | -8/Materials | Identified exit to Garrison 8757 | -8/Materials | Entered Garrison 8757 | -8/Garrison | Accompanied by 4 allies 8892 | -8/Garrison | Triggered checkpoint 9052 | -8/Garrison | Expanded RIF knowledge: Autooverride 9085 | -8/Garrison | Triggered checkpoint 9131 | -8/Garrison | Garrison Relay disabled 9225 | -8/Garrison | Triggered checkpoint 9319 | -8/Garrison | Destroyed 7 combat bots 9321 | -8/Garrison | Triggered checkpoint 9457 | -8/Garrison | Triggered checkpoint 9509 | -8/Garrison | Learned Factory security intel 9542 | -8/Garrison | Discovered exit to Factory (range 7) 9542 | -8/Garrison | Discovered exit to Factory (range 72) 9542 | -8/Garrison | Discovered exit to Factory (range 77) 9542 | -8/Garrison | Discovered new exit (range 39) 9560 | -8/Garrison | Garrison Relay disabled 9669 | -8/Garrison | Expanded RIF knowledge: Autoassimilate 10115 | -8/Garrison | Triggered checkpoint 10183 | -8/Garrison | Triggered checkpoint 10312 | -8/Garrison | Entered Materials 10312 | -8/Materials | Accompanied by 5 allies 10756 | -8/Materials | Identified exit to Garrison 10994 | -8/Materials | Entered Garrison 10994 | -8/Garrison | Accompanied by 5 allies 11108 | -8/Garrison | Build established: Bothacker-Tank 11172 | -8/Garrison | Triggered checkpoint 11199 | -8/Garrison | Garrison Relay disabled 11335 | -8/Garrison | Triggered checkpoint 11355 | -8/Garrison | Triggered checkpoint 11358 | -8/Garrison | Triggered checkpoint 11419 | -8/Garrison | Lost 5 allies 11471 | -8/Garrison | Triggered checkpoint 11473 | -8/Garrison | Core integrity fell below 20% 11507 | -8/Garrison | Expanded RIF knowledge: Threat Obfuscation 11542 | -8/Garrison | Discovered exit to Factory (range 3) 11558 | -8/Garrison | P-60 Hacker assimilated allied 66-BIF(g) 11568 | -8/Garrison | Phase Generator disabled 11610 | -8/Garrison | Garrison Relay disabled 11894 | -8/Garrison | Build established: Botlord-Tank 11904 | -8/Garrison | Discovered exit to Factory (range 11) 12214 | -8/Garrison | Triggered checkpoint 12215 | -8/Garrison | Garrison Relay disabled 12309 | -8/Garrison | Discovered exit to Factory (range 8) 12384 | -8/Garrison | Triggered checkpoint 12872 | -8/Garrison | P-60 Hacker assimilated allied Trooper 3m 12995 | -8/Garrison | Entered Factory 12995 | -7/Factory | Accompanied by 2 allies 12995 | -7/Factory | Evolved 2 slots: Propulsion x1, Utility x1 12996 | -7/Factory | Identified exit to Storage 12997 | -7/Factory | Identified exit to Factory 12997 | -7/Factory | Identified exit to Lower Caves 13445 | -7/Factory | Identified exit to Garrison 13484 | -7/Factory | Entered Garrison 13484 | -7/Garrison | Accompanied by 4 allies 13534 | -7/Garrison | Triggered checkpoint 13541 | -7/Garrison | Expanded RIF knowledge: Hotswap 13594 | -7/Garrison | Garrison Relay disabled 13639 | -7/Garrison | Build established: Botlord-Gunner 13724 | -7/Garrison | Triggered checkpoint 13877 | -7/Garrison | Discovered new exit (range 3) 13940 | -7/Garrison | Lost 4 allies 13950 | -7/Garrison | Lost 3 parts (2n1w) 14022 | -7/Garrison | Triggered checkpoint 14151 | -7/Garrison | Garrison Relay disabled 14182 | -7/Garrison | Triggered checkpoint 14199 | -7/Garrison | Build established: Tank 14214 | -7/Garrison | Triggered checkpoint 14263 | -7/Garrison | Triggered checkpoint 14530 | -7/Garrison | Build established: Scavenger-Gunner 14603 | -7/Garrison | Triggered checkpoint 14788 | -7/Garrison | Discovered new exit (range 13) 14890 | -7/Garrison | Triggered checkpoint 14976 | -7/Garrison | Garrison Relay disabled 15078 | -7/Garrison | Build established: Scavenger-Tank 15190 | -7/Garrison | Rescued a captive Derelict 15194 | -7/Garrison | Rescued a captive Derelict 15220 | -7/Garrison | Discovered new exit (range 12) 15230 | -7/Garrison | Triggered checkpoint 15467 | -7/Garrison | Entered Factory 15467 | -7/Factory | Accompanied by 2 allies 16178 | -7/Factory | Discovered exit to Factory (range 9) 16503 | -7/Factory | Central database locked down 17578 | -7/Factory | Identified exit to Garrison 17578 | -7/Factory | Entered Garrison 17640 | -7/Garrison | Triggered checkpoint 17699 | -7/Garrison | Garrison Relay disabled 17845 | -7/Garrison | Destroyed 13 combat bots 17908 | -7/Garrison | Triggered checkpoint 18024 | -7/Garrison | Discovered exit to Factory (range 15) 18096 | -7/Garrison | Triggered checkpoint 18099 | -7/Garrison | Core integrity fell below 50% 18206 | -7/Garrison | Build established: Botlord-Gunner 18316 | -7/Garrison | Triggered checkpoint 18427 | -7/Garrison | Discovered exit to Factory (range 8) 18496 | -7/Garrison | Expanded RIF knowledge: Coupler Efficiency 18524 | -7/Garrison | Build established: Botlord-Tank 18534 | -7/Garrison | Triggered checkpoint 18557 | -7/Garrison | Garrison Relay disabled 18722 | -7/Garrison | Found embedded Infiltrators 18726 | -7/Garrison | Triggered checkpoint 18751 | -7/Garrison | Garrison Relay disabled 18799 | -7/Garrison | Discovered exit to Factory (range 14) 18974 | -7/Garrison | Entered Factory 18974 | -6/Factory | Accompanied by 4 allies 18974 | -6/Factory | Evolved 2 slots: Utility x2 19602 | -6/Factory | Identified exit to Garrison 19604 | -6/Factory | Entered Garrison 19604 | -6/Garrison | Accompanied by 5 allies 19651 | -6/Garrison | Heavy support dispatched to Factory 19651 | -6/Garrison | H-XX Assembler disabled 19842 | -6/Garrison | Triggered checkpoint 19864 | -6/Garrison | Expanded RIF knowledge: Coupler Efficiency 19899 | -6/Garrison | Garrison Relay disabled 19989 | -6/Garrison | Triggered checkpoint 19992 | -6/Garrison | Triggered checkpoint 20134 | -6/Garrison | Triggered checkpoint 20157 | -6/Garrison | P-60 Hacker assimilated allied Veteran 5a 20176 | -6/Garrison | Lost 3 allies 20209 | -6/Garrison | Garrison Relay disabled 20260 | -6/Garrison | Discovered new exit (range 14) 20368 | -6/Garrison | Triggered checkpoint 20438 | -6/Garrison | Triggered checkpoint 20529 | -6/Garrison | Discovered new exit (range 13) 20610 | -6/Garrison | Triggered checkpoint 20631 | -6/Garrison | Garrison Relay disabled 20794 | -6/Garrison | Triggered checkpoint 20833 | -6/Garrison | Discovered new exit (range 14) 20855 | -6/Garrison | Lost 3 allies 20922 | -6/Garrison | Triggered checkpoint 20974 | -6/Garrison | Lost 3 allies 21020 | -6/Garrison | Triggered checkpoint 21200 | -6/Garrison | Garrison Relay disabled 21437 | -6/Garrison | Entered Factory 21437 | -5/Factory | Accompanied by 13 allies 21437 | -5/Factory | Evolved 2 slots: Utility x2 21438 | -5/Factory | Identified exit to Extension 21631 | -5/Factory | Unchained authorized (GL-D0S) 21766 | -5/Factory | Build established: Botlord-Skirmisher 21826 | -5/Factory | Fabricated Quantum Reactor? 22057 | -5/Factory | Discovered new exit (range 15) 22377 | -5/Factory | Fabricated P-70 Sage (x2) 22462 | -5/Factory | Fabricated P-70 Sage (x2) 22562 | -5/Factory | Fabricated P-70 Sage? 22657 | -5/Factory | Spotted B-75 Beast 22662 | -5/Factory | Assimilated Beast 6a with formatsys_high 22703 | -5/Factory | Lost 4 allies 22921 | -5/Factory | Sage 6c assimilated hostile G-67 Veteran 22977 | -5/Factory | Repaired Imp. Heavy Treads 23198 | -5/Factory | Found Corrupted Prototype Special Weapon 23279 | -5/Factory | Lost 3 allies 23304 | -5/Factory | Identified exit to Garrison 23304 | -5/Factory | Entered Garrison 23304 | -5/Garrison | Accompanied by 5 allies 23363 | -5/Garrison | Build established: Botlord-Tank 23372 | -5/Garrison | Triggered checkpoint 23395 | -5/Garrison | Spotted B-75 Beast 23410 | -5/Garrison | Destroyed B-75 Beast 23576 | -5/Garrison | Triggered checkpoint 23612 | -5/Garrison | Lost 6 allies 23612 | -5/Garrison | Spotted B-75 Beast 23614 | -5/Garrison | Triggered checkpoint 23634 | -5/Garrison | Destroyed B-75 Beast 23797 | -5/Garrison | Garrison Relay disabled 23800 | -5/Garrison | Identified Hammerchucker 23801 | -5/Garrison | System corruption reached 10% 23935 | -5/Garrison | Garrison Relay disabled 23987 | -5/Garrison | Discovered new exit (range 15) 24010 | -5/Garrison | Triggered checkpoint 24052 | -5/Garrison | Lost 3 allies 24420 | -5/Garrison | Triggered checkpoint 24440 | -5/Garrison | Triggered checkpoint 24502 | -5/Garrison | Triggered checkpoint 24502 | -5/Garrison | Garrison Relay disabled 24551 | -5/Garrison | Discovered new exit (range 26) 24551 | -5/Garrison | Discovered new exit (range 25) 24551 | -5/Garrison | Discovered new exit (range 60) 24787 | -5/Garrison | Expanded RIF knowledge: Structural Interface 24958 | -5/Garrison | Triggered checkpoint 24973 | -5/Garrison | Garrison Relay disabled 25368 | -5/Garrison | Identified exit to Factory 25433 | -5/Garrison | Entered Factory 25433 | -4/Factory | Accompanied by 10 allies 25433 | -4/Factory | Evolved 2 slots: Propulsion x2 25500 | -4/Factory | Discovered new exit (range 4) 25508 | -4/Factory | Identified exit to Research 25595 | -4/Factory | Unchained authorized (GL-D0S) 25627 | -4/Factory | Lost 4 allies 25700 | -4/Factory | Fabricated Adv. Remote Datajack (x2) 25844 | -4/Factory | Lost 4 allies 25984 | -4/Factory | Garrison activated, responded to threat 25999 | -4/Factory | Spotted B-86 Titan 26017 | -4/Factory | Assimilated Titan 7a with formatsys_high 26037 | -4/Factory | Lost 5 allies 26095 | -4/Factory | Garrison activated, responded to threat 26172 | -4/Factory | Lost 3 allies 26174 | -4/Factory | Identified exit to Garrison 26188 | -4/Factory | Entered Garrison 26188 | -4/Garrison | Accompanied by 2 allies 26205 | -4/Garrison | Garrison Relay disabled 26259 | -4/Garrison | Spotted B-86 Titan 26264 | -4/Garrison | Expanded RIF knowledge: Coupler Efficiency 26271 | -4/Garrison | Garrison Relay disabled 26273 | -4/Garrison | Assimilated Titan 7b with formatsys_high 26377 | -4/Garrison | Spotted B-86 Titan 26388 | -4/Garrison | Triggered checkpoint 26408 | -4/Garrison | Triggered checkpoint 26408 | -4/Garrison | Allies destroyed B-86 Titan 26419 | -4/Garrison | P-70 Sage assimilated allied Smith 7a 26465 | -4/Garrison | Lost 9 allies 26538 | -4/Garrison | Garrison Relay disabled 26587 | -4/Garrison | Discovered new exit (range 5) 26588 | -4/Garrison | Triggered checkpoint 26588 | -4/Garrison | Identified exit to Factory 26598 | -4/Garrison | Triggered checkpoint 26623 | -4/Garrison | Garrison Relay disabled 26647 | -4/Garrison | Discovered exit to Research (range 13) 26691 | -4/Garrison | Build established: Botlord-Gunner 26723 | -4/Garrison | Discovered exit to Research (range 78) 26723 | -4/Garrison | Discovered exit to Research (range 36) 26723 | -4/Garrison | Discovered exit to Research (range 22) 26723 | -4/Garrison | Discovered exit to Factory (range 80) 26727 | -4/Garrison | Triggered checkpoint 26735 | -4/Garrison | Learned Research security intel 26740 | -4/Garrison | Garrison Relay disabled 26798 | -4/Garrison | Garrison Relay disabled 26800 | -4/Garrison | Triggered checkpoint 26867 | -4/Garrison | Spotted B-86 Titan 26870 | -4/Garrison | Found Relay Coupler [Proto] 26871 | -4/Garrison | Found Relay Coupler [Proto] 26873 | -4/Garrison | Found Relay Coupler [Proto] 27120 | -4/Garrison | Entered Factory 27120 | -4/Factory | Accompanied by 6 allies 27167 | -4/Factory | Discovered exit to Research (range 12) 27346 | -4/Factory | Lost 3 allies 27449 | -4/Factory | Identified exit to Upper Caves 27616 | -4/Factory | Garrison activated, responded to threat 27678 | -4/Factory | Identified exit to Garrison 27690 | -4/Factory | Entered Garrison 27690 | -4/Garrison | Accompanied by 12 allies 27714 | -4/Garrison | Triggered checkpoint 27728 | -4/Garrison | Garrison Relay disabled 27750 | -4/Garrison | Spotted B-86 Titan 27755 | -4/Garrison | Triggered checkpoint 27776 | -4/Garrison | Destroyed 7 combat bots 27787 | -4/Garrison | Allies destroyed B-86 Titan 27814 | -4/Garrison | Triggered checkpoint 27814 | -4/Garrison | Triggered checkpoint 27880 | -4/Garrison | Triggered checkpoint 27896 | -4/Garrison | Garrison Relay disabled 27902 | -4/Garrison | Lost 5 allies 27981 | -4/Garrison | Discovered exit to Research (range 14) 28034 | -4/Garrison | Discovered exit to Research (range 10) 28040 | -4/Garrison | Triggered checkpoint 28061 | -4/Garrison | Expanded RIF knowledge: Watcher Feeds 28070 | -4/Garrison | Triggered checkpoint 28082 | -4/Garrison | Garrison Relay disabled 28195 | -4/Garrison | Garrison Relay disabled 28206 | -4/Garrison | Discovered exit to Research (range 10) 28230 | -4/Garrison | Spotted B-86 Titan 28231 | -4/Garrison | Assimilated Titan 7c with formatsys_high 28403 | -4/Garrison | Entered Research 28403 | -3/Research | Accompanied by 20 allies 28403 | -3/Research | Evolved 2 slots: Utility x2 28551 | -3/Research | Discovered new exit (range 33) 28586 | -3/Research | Lost 3 allies 28636 | -3/Research | Spotted B-86 Titan 28638 | -3/Research | Assimilated Titan 8a with formatsys_high 28663 | -3/Research | Found Spectral Analyzer 28796 | -3/Research | Unchained authorized (6S-H0T) 28886 | -3/Research | Identified exit to Research 28923 | -3/Research | Garrison activated, responded to threat 29010 | -3/Research | Lost 4 allies 29252 | -3/Research | Lost 7 allies 29284 | -3/Research | Cargo convoy interrupted 29308 | -3/Research | Spotted Executioner 29316 | -3/Research | Lost 3 allies 29393 | -3/Research | Destroyed Executioner 29427 | -3/Research | Found Prototype Processor 29427 | -3/Research | Identified Exp. Core Analyzer 29441 | -3/Research | Found Prototype Device 29441 | -3/Research | Identified Adv. Kinecellerator 29525 | -3/Research | Discovered exit to Research (range 4) 29593 | -3/Research | Identified exit to Garrison 29593 | -3/Research | Entered Garrison 29593 | -3/Garrison | Accompanied by 1 ally 29607 | -3/Garrison | Triggered checkpoint 29615 | -3/Garrison | Discovered new exit (range 5) 29666 | -3/Garrison | Lost 3 parts (1n2w) 29677 | -3/Garrison | Triggered checkpoint 29682 | -3/Garrison | Garrison Relay disabled 29696 | -3/Garrison | Expanded RIF knowledge: Robot Detection 29735 | -3/Garrison | Triggered checkpoint 29746 | -3/Garrison | Lost 5 allies 29750 | -3/Garrison | Triggered checkpoint 29751 | -3/Garrison | Triggered checkpoint 29755 | -3/Garrison | Triggered checkpoint 29759 | -3/Garrison | Triggered checkpoint 29787 | -3/Garrison | Garrison Relay disabled 29805 | -3/Garrison | Lost 7 allies 29809 | -3/Garrison | Triggered checkpoint 29827 | -3/Garrison | Discovered exit to Research (range 15) 29886 | -3/Garrison | Discovered exit to Research (range 4) 29896 | -3/Garrison | Garrison Relay disabled 29914 | -3/Garrison | Learned Research security intel 29933 | -3/Garrison | Triggered checkpoint 29937 | -3/Garrison | Garrison Relay disabled 29997 | -3/Garrison | Triggered checkpoint 30042 | -3/Garrison | Triggered checkpoint 30054 | -3/Garrison | Garrison Relay disabled 30076 | -3/Garrison | Discovered exit to Research (range 12) 30077 | -3/Garrison | Spotted B-86 Titan 30128 | -3/Garrison | Allies destroyed B-86 Titan 30351 | -3/Garrison | Identified exit to Research 30446 | -3/Garrison | Entered Research 30446 | -3/Research | Accompanied by 13 allies 30615 | -3/Research | Unchained authorized (6S-H0T) 30668 | -3/Research | Discovered new exit (range 4) 30670 | -3/Research | Identified exit to Quarantine 30679 | -3/Research | System corruption reached 10% 30777 | -3/Research | Entered Quarantine 30777 | -3/Quarantine | Accompanied by 13 allies 30793 | -3/Quarantine | Cryocooling Duct disabled 30808 | -3/Quarantine | Ambient heat levels rising (+20) 30808 | -3/Quarantine | Non-combat units ordered to evacuate 30814 | -3/Quarantine | Build established: Botlord-Mutant 30911 | -3/Quarantine | Lost 5 allies 30921 | -3/Quarantine | Garrison activated, responded to threat 30922 | -3/Quarantine | Identified exit to Garrison 30927 | -3/Quarantine | Repaired Broken Cld. Antigrav System? 31090 | -3/Quarantine | P-80 Master assimilated allied Veteran 8n 31093 | -3/Quarantine | P-80 Master assimilated allied Director 8a 31133 | -3/Quarantine | Discovered exit to Research (range 4) 31157 | -3/Quarantine | Found Alien Energy Cannon 31276 | -3/Quarantine | P-80 Master assimilated allied Assassin 8h 31279 | -3/Quarantine | P-80 Master assimilated allied Warden 8l 31362 | -3/Quarantine | Found Alien Artifact 31426 | -3/Quarantine | Lost 3 allies 31479 | -3/Quarantine | Learned location of 1 exit from Section 7 31529 | -3/Quarantine | Learned Section 7 terminal intel 31570 | -3/Quarantine | Learned location of 1 exit from Armory 31599 | -3/Quarantine | Learned Research scanalyzer intel 31624 | -3/Quarantine | Identified exit to Section 7 31627 | -3/Quarantine | Found Alien Artifact 31631 | -3/Quarantine | Found Alien Artifact 31636 | -3/Quarantine | Found Alien Artifact 31640 | -3/Quarantine | Identified exit to Protoforge 31666 | -3/Quarantine | Learned Testing stockpile data 31703 | -3/Quarantine | Learned Research security intel 31715 | -3/Quarantine | Spotted Fortress 31716 | -3/Quarantine | Autoassimilated Fortress with RIF 31783 | -3/Quarantine | Cryocooling Duct disabled 31798 | -3/Quarantine | Ambient heat levels rising (+20) 31798 | -3/Quarantine | Combat units ordered to evacuate 31898 | -3/Quarantine | Quarantine Guard activated 31898 | -3/Quarantine | Spotted Quarantine Guard 31898 | -3/Quarantine | Spotted Quarantine Guard 31898 | -3/Quarantine | Spotted Quarantine Guard 31898 | -3/Quarantine | Spotted Quarantine Guard 31898 | -3/Quarantine | Spotted Quarantine Guard 31898 | -3/Quarantine | Spotted Quarantine Guard 31898 | -3/Quarantine | Spotted Quarantine Guard 31898 | -3/Quarantine | Spotted Quarantine Guard 31898 | -3/Quarantine | Spotted Quarantine Guard 31898 | -3/Quarantine | Spotted Quarantine Guard 31898 | -3/Quarantine | Spotted Quarantine Guard 31898 | -3/Quarantine | Spotted Quarantine Guard 31899 | -3/Quarantine | Autoassimilated Quarantine Guard with RIF 31899 | -3/Quarantine | Autoassimilated Quarantine Guard with RIF 31899 | -3/Quarantine | Autoassimilated Quarantine Guard with RIF 31899 | -3/Quarantine | Autoassimilated Quarantine Guard with RIF 31900 | -3/Quarantine | Allies destroyed Quarantine Guard 31905 | -3/Quarantine | Allies destroyed Quarantine Guard 31908 | -3/Quarantine | Allies destroyed Quarantine Guard 31910 | -3/Quarantine | Destroyed Quarantine Guard 31922 | -3/Quarantine | Build established: Botlord-Gunner 31926 | -3/Quarantine | Allies destroyed Quarantine Guard 31929 | -3/Quarantine | Destroyed Quarantine Guard 31933 | -3/Quarantine | Destroyed Quarantine Guard 31965 | -3/Quarantine | Lost 8 allies 32225 | -3/Quarantine | Entered Protoforge 32225 | -3/Protoforge | Accompanied by 10 allies 32226 | -3/Protoforge | Superfortress began startup sequence 32283 | -3/Protoforge | Spotted Hotshot 32283 | -3/Protoforge | Spotted Hotshot 32283 | -3/Protoforge | Spotted Hotshot 32283 | -3/Protoforge | Spotted Hotshot 32287 | -3/Protoforge | Spotted B-86 Titan 32303 | -3/Protoforge | Autoassimilated Hotshot with RIF 32306 | -3/Protoforge | Allies destroyed Hotshot 32309 | -3/Protoforge | Allies destroyed Hotshot 32311 | -3/Protoforge | Destroyed Hotshot 32629 | -3/Protoforge | Build established: Botlord-Mutant 32636 | -3/Protoforge | Spotted Hotshot 32639 | -3/Protoforge | Spotted Hotshot 32639 | -3/Protoforge | Spotted Hotshot 32639 | -3/Protoforge | Spotted Hotshot 32648 | -3/Protoforge | Allies destroyed Hotshot 32650 | -3/Protoforge | Core integrity fell below 50% 32658 | -3/Protoforge | Destroyed Hotshot 32664 | -3/Protoforge | P-80 Master assimilated allied Veteran 8g 32664 | -3/Protoforge | P-80 Master assimilated allied Warden 8f 32667 | -3/Protoforge | P-80 Master assimilated allied Rainmaker 8c 32669 | -3/Protoforge | P-80 Master assimilated allied Artificer 8a 32702 | -3/Protoforge | Lost 3 allies 32752 | -3/Protoforge | Found Prototype Device 32752 | -3/Protoforge | Identified Cep. Weapon Articulator 32811 | -3/Protoforge | Found Prototype Storage 32811 | -3/Protoforge | Identified Cep. NT7 Matterbank 32817 | -3/Protoforge | Found Prototype Device 32817 | -3/Protoforge | Identified Exp. Trap Extractor 32873 | -3/Protoforge | Scanned by Researcher 32936 | -3/Protoforge | Lost 5 allies 32989 | -3/Protoforge | Identified Transdimensional Reconstructor 32992 | -3/Protoforge | Found Prototype Device 32997 | -3/Protoforge | Spotted Immortal 32997 | -3/Protoforge | Spotted Immortal 33002 | -3/Protoforge | Identified Crosscalibrator 33003 | -3/Protoforge | Spotted Decapitator 33003 | -3/Protoforge | Spotted Decapitator 33003 | -3/Protoforge | Spotted Decapitator 33003 | -3/Protoforge | Spotted Decapitator 33021 | -3/Protoforge | Destroyed Decapitator 33043 | -3/Protoforge | Allies destroyed Decapitator 33069 | -3/Protoforge | Allies destroyed Decapitator 33129 | -3/Protoforge | Destroyed Immortal 33143 | -3/Protoforge | Found Corrupted Exp. Jetlance 33144 | -3/Protoforge | Found Corrupted Prototype Device 33144 | -3/Protoforge | Identified Cep. Antimissile System 33167 | -3/Protoforge | Destroyed Immortal 33194 | -3/Protoforge | Identified Subatomic Replicator 33194 | -3/Protoforge | Identified Hpw. Transdimensional Reconstructor 33194 | -3/Protoforge | Identified Core Cannon 33221 | -3/Protoforge | Found Cep. Hypertargeting System 33223 | -3/Protoforge | Found Faulty Cep. Networked Targeting System 33225 | -3/Protoforge | Found Faulty Cep. Melee Reflex Suite 33227 | -3/Protoforge | Found Faulty Cep. Melee Reflex Suite 33231 | -3/Protoforge | Found Exp. Kinecellerator 33256 | -3/Protoforge | Found Corrupted Prototype Device 33266 | -3/Protoforge | Identified Exp. Cloaking Device 33270 | -3/Protoforge | Found Femtoactuators 33272 | -3/Protoforge | Found Femtoactuators 33275 | -3/Protoforge | Found Cep. Melee Reflex Suite 33323 | -3/Protoforge | Spotted V401-z 33336 | -3/Protoforge | System corruption reached 30% 33341 | -3/Protoforge | Destroyed V401-z 33457 | -3/Protoforge | Found Cep. Zero-point Core 33645 | -3/Protoforge | Forge Plexus network access discovered 33921 | -3/Protoforge | Spotted V068-r 33921 | -3/Protoforge | Spotted V858-x 33925 | -3/Protoforge | Spotted V552-k 33933 | -3/Protoforge | Found Cep. Antigrav Storage Unit 33971 | -3/Protoforge | Spotted Decapitator 33971 | -3/Protoforge | Spotted Decapitator 33987 | -3/Protoforge | Destroyed Decapitator 33993 | -3/Protoforge | Destroyed Decapitator 34005 | -3/Protoforge | Found Exp. Jetlance 34009 | -3/Protoforge | Found Exp. Jetlance 34012 | -3/Protoforge | Found Faulty Cep. Heavy Railcannon 34015 | -3/Protoforge | Found Faulty Cep. Heavy Railcannon 34027 | -3/Protoforge | Found Faulty Cep. Miniperforator 34030 | -3/Protoforge | Found Faulty Cep. XC Strikerail 34045 | -3/Protoforge | Spotted V776-o 34115 | -3/Protoforge | Destroyed V776-o 34118 | -3/Protoforge | Found Cep. Gyrokinetic System 34120 | -3/Protoforge | Found Adv. Powered Armor 34122 | -3/Protoforge | Found Cep. Zero-point Core 34124 | -3/Protoforge | Found Faulty Cep. XC Strikerail 34126 | -3/Protoforge | Found Faulty Cep. XC Strikerail 34128 | -3/Protoforge | Found Faulty Cep. Plasma Driver 34137 | -3/Protoforge | Found Cep. Plasma Driver 34139 | -3/Protoforge | Found Faulty Cep. Plasma Driver 34142 | -3/Protoforge | Found Thermal Barrier 34209 | -3/Protoforge | Spotted Immortal 34209 | -3/Protoforge | Spotted Immortal 34210 | -3/Protoforge | Autoassimilated Immortal with RIF 34215 | -3/Protoforge | Spotted V284-d 34215 | -3/Protoforge | Spotted V868-z 34219 | -3/Protoforge | Spotted V130-b 34222 | -3/Protoforge | Destroyed V130-b 34229 | -3/Protoforge | Destroyed Immortal 34234 | -3/Protoforge | Found Exp. Jetlance 34235 | -3/Protoforge | Found Exp. Cloaking Device 34240 | -3/Protoforge | Destroyed Immortal 34246 | -3/Protoforge | Found Exp. Cloaking Device 34250 | -3/Protoforge | Found Cep. Combat Aerolev Unit 34259 | -3/Protoforge | Found Cep. Combat Aerolev Unit 34262 | -3/Protoforge | Found Faulty Cep. Combat Aerolev Unit 34267 | -3/Protoforge | Found Faulty Cep. Combat Aerolev Unit 34274 | -3/Protoforge | Found Cep. Gyrokinetic System 34300 | -3/Protoforge | Build established: Botlord-Gladiator 34362 | -3/Protoforge | Found Cep. Rapid Grenade Launcher 34363 | -3/Protoforge | Found Faulty Cep. Rapid Grenade Launcher 34597 | -3/Protoforge | Additional patrols dispatched to research labs 34607 | -3/Protoforge | Found Cep. Navigation Harness 34642 | -3/Protoforge | Spotted AP7-3 34642 | -3/Protoforge | Spotted AP7-3 34659 | -3/Protoforge | Build established: Scavenger-Gladiator 34753 | -3/Protoforge | Found Cep. Energy Mantle 34778 | -3/Protoforge | Spotted V592-h 34778 | -3/Protoforge | Spotted V587-z 34778 | -3/Protoforge | Spotted V141-a 34778 | -3/Protoforge | Spotted V671-i 34780 | -3/Protoforge | Warped through subspace 34781 | -3/Protoforge | Core integrity fell below 20% 34845 | -3/Protoforge | Spotted AP7-3 34845 | -3/Protoforge | Spotted AP7-3 34858 | -3/Protoforge | Spotted Hotshot 34858 | -3/Protoforge | Spotted Hotshot 34858 | -3/Protoforge | Spotted Hotshot 34858 | -3/Protoforge | Spotted Hotshot 34874 | -3/Protoforge | Spotted Hotshot 34914 | -3/Protoforge | Entered Research 34914 | -2/Research | Evolved 2 slots: Power x1, Utility x1 34916 | -2/Research | Loaded intel: 6 scanalyzer locations 35102 | -2/Research | Garrison activated, responded to threat 35121 | -2/Research | Identified exit to Garrison 35121 | -2/Research | Entered Garrison 35127 | -2/Garrison | Found embedded Infiltrators 35130 | -2/Garrison | Triggered checkpoint 35145 | -2/Garrison | Garrison Relay disabled 35238 | -2/Garrison | Spotted B-90 Cyclops 35280 | -2/Garrison | Destroyed B-90 Cyclops 35288 | -2/Garrison | Lost 5 allies 35299 | -2/Garrison | Triggered checkpoint 35318 | -2/Garrison | Discovered new exit (range 7) 35322 | -2/Garrison | Spotted B-90 Cyclops 35330 | -2/Garrison | Lost 4 parts (1n2u1w) 35377 | -2/Garrison | Allies destroyed B-90 Cyclops 35397 | -2/Garrison | Triggered checkpoint 35461 | -2/Garrison | Garrison Relay disabled 35521 | -2/Garrison | Triggered checkpoint 35539 | -2/Garrison | Discovered new exit (range 11) 35551 | -2/Garrison | Triggered checkpoint 35587 | -2/Garrison | Garrison Relay disabled 35691 | -2/Garrison | Discovered new exit (range 13) 35695 | -2/Garrison | Expanded RIF knowledge: Crosswire 35705 | -2/Garrison | Spotted Striker 35723 | -2/Garrison | Triggered checkpoint 35734 | -2/Garrison | Garrison Relay disabled 35763 | -2/Garrison | Build established: Botlord-Gladiator 35771 | -2/Garrison | Destroyed Striker 35784 | -2/Garrison | Rewired Executioner 35874 | -2/Garrison | Destroyed Executioner 35886 | -2/Garrison | Found Exp. Core Analyzer 35888 | -2/Garrison | Found Exp. Core Analyzer 35895 | -2/Garrison | Entered Access 35895 | -1/Access | Accompanied by 1 ally 35895 | -1/Access | Evolved 2 slots: Propulsion x1, Utility x1 35961 | -1/Access | Spotted B-99 Colossus 35961 | -1/Access | Spotted B-99 Colossus 36278 | -1/Access | Identified exit to Garrison 36278 | -1/Access | Garrison activated, responded to threat 36284 | -1/Access | Entered Garrison 36284 | -1/Garrison | Accompanied by 5 allies 36294 | -1/Garrison | Learned Access security intel 36326 | -1/Garrison | Murdered 3 allies 36365 | -1/Garrison | Triggered checkpoint 36372 | -1/Garrison | Lost 7 allies 36372 | -1/Garrison | Garrison Relay disabled 36461 | -1/Garrison | Lost 3 parts (1n1u1w) 36465 | -1/Garrison | Triggered checkpoint 36468 | -1/Garrison | Spotted B-99 Colossus 36468 | -1/Garrison | Triggered checkpoint 36499 | -1/Garrison | Lost 3 allies 36535 | -1/Garrison | Assimilated Colossus 10a with formatsys_high 36538 | -1/Garrison | Lost 3 parts (1n2u) 36590 | -1/Garrison | Triggered checkpoint 36596 | -1/Garrison | Garrison Relay disabled 36613 | -1/Garrison | Expanded RIF knowledge: Patrol Navigation 36670 | -1/Garrison | Garrison Relay disabled 36684 | -1/Garrison | Triggered checkpoint 36690 | -1/Garrison | Discovered new exit (range 14) 36710 | -1/Garrison | Garrison Relay disabled 36744 | -1/Garrison | Triggered checkpoint 36750 | -1/Garrison | Triggered checkpoint 36777 | -1/Garrison | Rescued a captive Derelict 36778 | -1/Garrison | Rescued a captive Derelict 36781 | -1/Garrison | Spotted Executioner 36797 | -1/Garrison | Destroyed Executioner 36798 | -1/Garrison | Triggered checkpoint 36818 | -1/Garrison | Garrison Relay disabled 36830 | -1/Garrison | Discovered new exit (range 12) 36876 | -1/Garrison | Triggered checkpoint 36878 | -1/Garrison | Assimilated Heavy ARC 10a with formatsys_deep 36889 | -1/Garrison | Garrison Relay disabled 36915 | -1/Garrison | Discovered new exit (range 9) 36980 | -1/Garrison | Entered Access 36980 | -1/Access | Accompanied by 17 allies 37106 | -1/Access | Garrison activated, responded to threat 37265 | -1/Access | Spotted B-99 Colossus 37265 | -1/Access | Spotted B-99 Colossus 37265 | -1/Access | Assimilated Colossus 10b with formatsys_high 37267 | -1/Access | Assimilated Colossus 10c with formatsys_high 37284 | -1/Access | Discovered new exit (range 3) 37335 | -1/Access | Build established: Botlord-Sprinter 37387 | -1/Access | Entered Command 37387 | -1/Command | Accompanied by 14 allies 37414 | -1/Command | Discovered new exit (range 48) 37514 | -1/Command | Spotted M Guard 37514 | -1/Command | Spotted M Guard 37514 | -1/Command | Spotted Combat Programmer 37514 | -1/Command | Spotted Combat Programmer 37562 | -1/Command | Allies destroyed Combat Programmer 37566 | -1/Command | Allies destroyed Combat Programmer 37583 | -1/Command | Lost 3 allies 37585 | -1/Command | Assimilated M Guard with formatsys_high 37587 | -1/Command | Assimilated M Guard with formatsys_high 37845 | -1/Command | Build established: Botlord-Mutant 37899 | -1/Command | P-80 Master assimilated allied Enforcer 10*37 37955 | -1/Command | Lost 29 allies 38000 | -1/Command | Lost 8 allies 38022 | -1/Command | Lost 7 parts (1p5n1u) 38071 | -1/Command | Lost 14 allies 38085 | -1/Command | Met MAIN.C 38091 | -1/Command | 0b10 Conduit disabled 38110 | -1/Command | All MAIN.C guards destroyed 38126 | -1/Command | Destroyed 11 combat bots 38143 | -1/Command | Core integrity fell below 50% 38146 | -1/Command | Destroyed MAIN.C Shell 38148 | -1/Command | Surrendered to MAIN.C 38148 | -1/Command | Loaded intel: 59 machine locations 38148 | -1/Command | Loaded intel: 106 trap records 38148 | -1/Command | Identified exit to Surface 38148 | -1/Command | Discovered exit to Surface (range 85) 38148 | -1/Command | Discovered exit to Surface (range 39) 38173 | -1/Command | Lost 11 parts (1p5n4u1w) 38196 | -1/Command | Found Vortex Chain Reactor 38210 | -1/Command | Found Prototype Device 38210 | -1/Command | Identified Adv. Particle Accelerator 38214 | -1/Command | Found Prototype Device 38214 | -1/Command | Identified Exp. System Purifier 38219 | -1/Command | Found Exp. Weapon Cycler 38224 | -1/Command | Found Exp. Weapon Cycler 38231 | -1/Command | MAIN.C activated Command garrisons 38271 | -1/Command | Unknown forces attacked Command 38271 | -1/Command | Spotted EQ-000 38276 | -1/Command | Spotted EQ-010 38280 | -1/Command | Spotted EQ-009 38289 | -1/Command | Core integrity fell below 20% 38307 | -1/Command | Spotted EQ-003 38319 | -1/Command | Spotted EQ-001 38325 | -1/Command | Destroyed EQ-009 38327 | -1/Command | Destroyed EQ-010 38355 | -1/Command | Spotted EQ-019 38355 | -1/Command | Spotted EQ-022 38357 | -1/Command | Spotted EQ-020 38362 | -1/Command | Destroyed EQ-000 38367 | -1/Command | Spotted EQ-034 38372 | -1/Command | Spotted EQ-023 38375 | -1/Command | Destroyed EQ-022 38383 | -1/Command | Spotted EQ-018 38384 | -1/Command | Spotted EQ-021 38404 | -1/Command | Lost 17 allies 38404 | -1/Command | Spotted EQ-027 38411 | -1/Command | Destroyed EQ-034 38412 | -1/Command | Spotted EQ-002 38424 | -1/Command | Destroyed EQ-027 38430 | -1/Command | Destroyed EQ-020 38432 | -1/Command | Destroyed EQ-002 38457 | -1/Command | Spotted EQ-045 38457 | -1/Command | Spotted EQ-039 38457 | -1/Command | Spotted EQ-038 38461 | -1/Command | Spotted EQ-037 38467 | -1/Command | Spotted EQ-041 38468 | -1/Command | Destroyed EQ-039 38469 | -1/Command | System corruption reached 10% 38471 | -1/Command | Destroyed EQ-045 38471 | -1/Command | Destroyed EQ-037 38473 | -1/Command | Spotted EQ-047 38474 | -1/Command | Spotted EQ-054 38479 | -1/Command | Destroyed EQ-041 38484 | -1/Command | Spotted EQ-040 38489 | -1/Command | Destroyed EQ-054 38499 | -1/Command | Destroyed EQ-040 38500 | -1/Command | Lost 7 allies 38500 | -1/Command | Destroyed EQ-038 38521 | -1/Command | Destroyed 8 combat bots 38568 | -1/Command | Spotted EQ-060 38568 | -1/Command | Spotted EQ-062 38568 | -1/Command | Spotted EQ-067 38568 | -1/Command | Spotted EQ-061 38576 | -1/Command | Spotted EQ-049 38596 | -1/Command | Destroyed EQ-062 38601 | -1/Command | Spotted EQ-072 38619 | -1/Command | Destroyed EQ-049 38625 | -1/Command | Lost 3 allies 38633 | -1/Command | Spotted EQ-075 38655 | -1/Command | Build established: Scavenger-Gunner 38655 | -1/Command | Spotted EQ-074 38659 | -1/Command | Destroyed EQ-075 38663 | -1/Command | Spotted EQ-076 38668 | -1/Command | Spotted EQ-085 38668 | -1/Command | Spotted EQ-084 38676 | -1/Command | Spotted EQ-107 38693 | *** | Escaped! Last Messages --------------- 38674_ Dropped Adv. Particle Accelerator. 38674_ B-99 Colossus destroyed. 38674_ Dropped Hvy. Hardcell Cannon. 38675_ The unstable cave ceiling collapses. 38675_ Dropped Centrium Medium Armor Plating. 38675_ Dropped Imp. Quantum Reactor. 38675_ Slug penetrates Alpha 7. 38675_ Slug penetrates Reinforced Barrier. 38676_ The unstable cave ceiling collapses. 38676_ Slug penetrates EQ-085. 38676_ EQ-085 suffers critical hit (Destroy). 38676_ Slug penetrates EQ-085. 38676_ Dropped Imp. Quantum Reactor. 38676_ Dropped Adv. Coolant Injector. 38677_ The unstable cave ceiling collapses. 38677_ Dropped Exp. Weapon Cycler. 38679_ Slug penetrates EQ-085. 38681_ The unstable cave ceiling collapses. 38687_ Exp. Core Shielding destroyed. 38689_ The unstable cave ceiling collapses. Map ----- +----------------------------------------------------+ | #"" # ###### ######### ## | | / #"" # #????# ########## ## | | #" ###+######### # ! ! #]]] # | | # # ## + #]] & # | | +###### # ## # !! # ! # | | + # ## # ! # * # | | # + ## ######= /######### | | # # = ## #????#######???????? | | ###+#######+########## #????#######???????? | | # # ! # #????# #???????? | | # # ! # #????# #???????? | | + # # #????# ! #???????? | | # + # #????# #???????? | | # # # ###### #???????? | | # # + % % # #???????? | | # # """" # + #???????? | | # # """" #####" # #???????? | | # # """" #???#" % #???????? | | # ] # """" #???## " #???????? | | # # #???## %" #???????? | | ######### #???#" + #?####### | | #???????##############??# #=!###+#"#?#?????? | | ###+###########????????????????#%!### #?#?#?##### | | # #???????######???#*]" # #???#?# " | | # #???????# #?###! # " #???#?#" | | #= #???????# @ #?# # %! " #???#?#" | | # ! #???????# #??#%%!=!% ###?#?# " | | # #???????### #???#%!!]%!#"#?#?# | | # #?????????# #???#=!!*![ #?#?# | | ###############?????????# #???#]!!!%%% #?#?# | | #""""""#????????????????# #???#]%"=*=% ##### *[ | | + """#????????????????# #???#=!""%!!] ###" %= | | + """#????????????????# #####=* = # ##" %[[ | | + """#????????????????# # # ! # #==[! | | #""""""#????????????????#! * # # #[=%= | | #########???????######??##== # %=%% | | ????????????????# ####"= [[= | | ????????????????# [!%[!%% = % # ]# =%= | | ????????????????# !!!!*%![%=% ! ! * | | ??????????????# " !%=!""]#! [ = | | ??????????????# "" =######= % | | ??????????????#### #????### # # | | ?????????????????# #??????# # " | | ?????????????????# #??????## # # | | ???????########### ########### ## ### # # ##### | | ???????# ] # # ###?##?# # ####???? | | ???????# # # #?????# ############ | | ######## !!! # # #????# #???????????? | | # + !!! + # #????##????????????? | | # ###### !!! # + #??????????????????? | +----------------------------------------------------+ Best States ------------- Heat Dissipation 154 Coolant Potential 120 Energy Generation 61 Energy Capacity 700 Matter Stores 300 Matter Capacity 300 Sight Range 23 Robot Scan Range 20 Terrain Scan Range 16 Terrain Scan Density 10 Jamming Range 16 Cloak Strength 4 Armor Coverage 625 Resistance: KI 20 Core Shielding 40 Weapon Shielding 90 Point Defense Rating 480 Weapon Cycling 30 Melee Speed Boost 50 Phase Shifting 15 Evasion (%) 84 Melee Accuracy 8 Target Analysis 8 Core Analysis 8 Recoil Reduction 4 Particle Charging 50 Offensive Hacking 20 Defensive Hacking 12 Relay Coupler Types 9 Relay Coupler Value 309 Authchip Count 5 Item Schematics ----------------- Imp. Flight Unit | -9/Materials | Scanalyzed Exp. Sensor Array | -8/Materials | Scanalyzed Adv. Remote Datajack | -5/Factory | Hacked Hds. Centrium Wheel | -3/Protoforge | Archive Exp. Core Shielding | -3/Protoforge | Archive Hellfire Missile Launcher | -3/Protoforge | Archive Robot Schematics ------------------ M-13 Machinist | -9/Materials | Hacked G-47 Trooper | -8/Materials | Hacked P-70 Sage | -5/Factory | Hacked L-61 Swordsman | -3/Protoforge | Archive Y-64 Sentinel | -3/Protoforge | Archive B-74 Champion | -3/Protoforge | Archive S-43 Plague | -3/Protoforge | Archive G-67 Veteran | -3/Protoforge | Archive T-07 Excavator | -3/Protoforge | Archive Fabricated ------------ Quantum Reactor | x2 | -5/Factory | Preloaded P-70 Sage | x2 | -5/Factory | Authchip P-70 Sage | x2 | -5/Factory | Authchip P-70 Sage | x2 | -5/Factory | Authchip Adv. Remote Datajack | x2 | -4/Factory | Authchip Repaired ---------- Lgt. Treads | 16% | -9/Materials Lgt. Treads | 30% | -9/Materials Arm. Treads | 62% | -8/Materials Imp. Assault Rifle | 37% | -8/Materials Hvy. Assault Cannon | 79% | -8/Materials Imp. Assault Rifle | 75% | -8/Materials Exp. Sensor Array | 62% | -8/Materials | Broken Imp. Heavy Treads | 44% | -5/Factory Cld. Antigrav System | 74% | -3/Quarantine | Broken Studied --------- Beam Rifle | -9/Materials | Hacked Lgt. Treads | -9/Materials | Hacked Minigun | -8/Materials | Hacked Hvy. Assault Cannon | -8/Materials | Hacked Arm. Treads | -8/Materials | Hacked Imp. Ion Engine | -8/Materials | Hacked Gatling Laser | -7/Factory | Hacked Imp. Deuterium Engine | -7/Factory | Hacked Flak Gun | -7/Factory | Hacked Cmb. Linear Gravjet | -4/Factory | Hacked Hyp. Railgun | -3/Research | Hacked Quantum Reactor | -3/Research | Hacked Adv. Remote Datajack | -3/Research | Hacked Alien Tech Used ----------------- High-powered Transdimensional Reconstructor Achievements -------------- Be The Sidekick Deep Understanding Hackerman I'm Outta Here, Maybe Oppo Buddy Powerful Protocols Prodigal Son RIFT Wizard Zeroed Repercussions Challenges ------------ None Game ------ Seed MultinovaWaveProtection Manual? 0 Play Time 09:40:06 Cumulative 728.9 hours Start 2025.12.22 @ 21:04:52 End 2026.01.04 @ 22:11:02 Sessions 5 Manual Loads 0 Difficulty Rogue Special Mode None Game No. 231 Rogue 215 Adventurer 15 Explorer 1 Win Type 0 Total 42 Types 11/5/10/2/2/0/6/3/1/2 Lore% 96 Gallery% 91 Achievement% 72 Wizard Run 0 Options --------- Layout 0 ASCII 0 Keyboard 0 Movement Numpad Keybinds 0 Fullscreen 1 Font 18/SmallcapsGlow Map View 76x50 Zoom Use 0% Tactical HUD 1 Map Filters NONE Filters NONE Steam 1 RUN: 2ec00efe-b787-42f7-a02c-a2a2b0aec319